Cogmind - Beta 17.1 @@@ ROGUE MODE // 2026.09.08 @ 12:14:32 Player: naththebg Result: Establishing 0b11! Performance ------------- Evolutions (9) 4500 Regions Visited (39) 7800 Robots Destroyed (2367) 11835 Value Destroyed (145996) 145996 Prototype IDs (392) 7840 Alien Tech Used (3) 600 Bonus (197228) 197228 TOTAL SCORE: 375799 Bonus ------- Triggered High Security 4000 High Alert Combat Kills 115415 Follower Combat Kills 1523 Prayed to X0-1V1 5000 Major X0-1V1 Interference 40200 Entered Garrisons 1600 Used RIF Installer 4000 Aligned with FarCom 300 Scanned by Researcher 500 Recovered Sigix Corpse 2000 Destroyed MAIN.C Guards 500 Met MAIN.C 5000 Destroyed MAIN.C Shell 5000 Destroyed MAIN.C 10000 Win 3000 Friendly Fire -810 Cogmind --------- Core Integrity 299/1370 Matter 27/300 Energy 475/490 System Corruption 56% Temperature Cool (7) Movement Treading (147) Location 0b11 Command Parts ------- > --- POWER (2) -------- Improved Quantum Reactor Zero-point Reactor > --- PROPULSION (5) --- Experimental Biometal Heavy Treads Enhanced Armored Heavy Treads > --- UTILITY (14) ----- High-capacity Storage Unit Advanced Kinecellerator Improved Medium Armor Plating Improved Medium Armor Plating Improved Medium Armor Plating Improved Medium Armor Plating Heavy Regenerative Plating X0-1V1's Piety Tracker > --- WEAPON (5) ------- KE Penetrator Heavy Hardcell Cannon > --- INVENTORY (20) --- Medium Treads Concept Chromion Battery (800) Experimental Matter Compressor (247) Concept NT7 Matterbank (750) Advanced Kinecellerator Improved Core Shielding Improved Utility Shielding Enhanced Hardcell Cannon Tactical Quantum Warhead Sigix Corpse Peak State ------------ > --- POWER ------------ Multi-Quantum Reactor > --- PROPULSION ------- Treaded Heavy-Biometal Exoskeleton > --- UTILITY ---------- Armored Scrap Engine Concept Antigrav Storage Unit Spectral Analyzer Concept Networked Targeting System Experimental Core Analyzer Experimental Armor Integrity Analyzer Advanced Weapon Cycler Concept Cloak Mesh Concept Cloak Mesh Centrium Medium Armor Plating Graphene Brace Crosscalibrator > --- WEAPON ----------- Concept XC Strikerail Hpw. Ballistic Helical Construct/C > --- INVENTORY -------- Improved Quantum Reactor Experimental Coolant Injector Concept Chromion Battery Concept NT7 Matterbank Concept Weapon Articulator Experimental Kinecellerator Concept Cloak Mesh Phase Redirector Concept Matter Streamer Concept Impact Drone Bay Subatomic Replicator Cooled Directed Potential Cannon Cooled Directed Potential Cannon Core Cannon Concept XC Strikerail Concept XC Strikerail Sigix Terminator Sigix Corpse Sigix Corpse [Rating: 276] Favorites ----------- Power Constructs Engine Reinforced Ion Engine Power Core Nuclear Core Reactor Constructs Propulsion Constructs Treads Constructs Leg High-density Centrium Leg Flight Unit Experimental Q-thruster Utility Armored Scrap Engine Device Armored Scrap Engine Storage Huge Storage Unit Processor Spectral Analyzer Hackware Relay Coupler [NC] Protection Heavy Regenerative Plating Artifact Phase Redirector Weapon Constructs Energy Gun Heavy Quantum Rifle Energy Cannon Enhanced Nova Cannon Ballistic Gun KE Penetrator Ballistic Cannon Constructs Launcher Concept Tactical Fusion Warhead Special Weapon Improved Remote Datajack Impact Weapon Makeshift Hammer Slashing Weapon Plasma Sword Special Melee Weapon Chaos Jack Build | -11 -10 -10 -9 -9 -9 -8 -8 -8 -8 -8 -8 -6 -6 -6 -6 -6 -6 -5 -5 -5 -5 -5 -5 -4 -4 -4 -4 -4 -4 -4 -4 -3 -3 -3 -2 -2 -2 -1 -1 ------- Run | Yrd Mat Min Mat Min Exi Min Mat Gar Mat Sto Rec Fac Gar Fac Gar Fac Gar Fac Was Fac Gar Fac Gar Fac Was Fac Ext Cet Arc Hub Gar Res Tes Gar Res Qua Frg Acc Com Slots Evolved 18 | . . . 2 . . . 2 . . . . 4 . . . . . 2 . . . . . 2 . . . . . . . 2 . . 2 . . 2 . Power 1 | . . . . . . . . . . . . . . . . . . 1 . . . . . . . . . . . . . . . . . . . . . Propulsion 2 | . . . 1 . . . 1 . . . . . . . . . . . . . . . . . . . . . . . . . . . . . . . . Utility 11 | . . . 1 . . . . . . . . 4 . . . . . . . . . . . 1 . . . . . . . 2 . . 2 . . 1 . Weapon 4 | . . . . . . . 1 . . . . . . . . . . 1 . . . . . 1 . . . . . . . . . . . . . 1 . Parts Attached 508 | 7 4 2 25 3 . . 9 16 12 9 14 19 5 8 2 . 4 4 . 15 5 5 2 9 1 17 10 . 1 2 5 43 5 6 16 25 60 25 113 Power 23 | 1 1 . 1 . . . . 2 2 2 . 1 1 1 . . . . . . 1 . . . . . . . . . . 2 . . . . . . 8 Engine 10 | 1 1 . 1 . . . . 2 1 1 . . 1 1 . . . . . . 1 . . . . . . . . . . . . . . . . . . Core 3 | . . . . . . . . . 1 1 . 1 . . . . . . . . . . . . . . . . . . . . . . . . . . . Reactor 10 | . . . . . . . . . . . . . . . . . . . . . . . . . . . . . . . . 2 . . . . . . 8 Propulsion 58 | 2 . 1 9 . . . 6 8 4 3 2 . . . . . . . . . . 2 . . . . . . . . . . . . . . . . 21 Treads 43 | 2 . 1 9 . . . 6 8 1 3 2 . . . . . . . . . . 2 . . . . . . . . . . . . . . . . 9 Leg 15 | . . . . . . . . . 3 . . . . . . . . . . . . . . . . . . . . . . . . . . . . . 12 Wheel . | . . . . . . . . . . . . . . . . . . . . . . . . . . . . . . . . . . . . . . . . Hover . | . . . . . . . . . . . . . . . . . . . . . . . . . . . . . . . . . . . . . . . . Flight . | . . . . . . . . . . . . . . . . . . . . . . . . . . . . . . . . . . . . . . . . Utility 307 | 2 . 1 6 1 . . 1 4 2 1 6 17 4 6 2 . 2 3 . 12 4 3 2 6 1 12 10 . 1 1 4 37 3 6 13 24 46 19 45 Device 197 | 1 . 1 2 . . . 1 2 1 . 4 6 4 4 2 . 1 2 . 10 3 2 2 4 1 7 6 . 1 . 1 26 2 6 8 19 35 14 19 Storage 10 | 1 . . 1 . . . . . . . . 2 . . . . . . . . . . . . . . . . . . . 2 . . . . 3 . 1 Processor 39 | . . . . . . . . . . . 1 2 . . . . . . . 1 . . . 1 . 3 4 . . 1 1 5 . . 2 4 5 3 6 Hackware 6 | . . . . . . . . . . 1 . 2 . . . . . 1 . . . . . . . . . . . . . . . . 1 . . . 1 Protection 54 | . . . 3 1 . . . 2 1 . 1 5 . 2 . . 1 . . 1 1 1 . 1 . 2 . . . . 2 4 1 . 2 . 3 2 18 Artifact 1 | . . . . . . . . . . . . . . . . . . . . . . . . . . . . . . . . . . . . 1 . . . Weapon 120 | 2 3 . 9 2 . . 2 2 4 3 6 1 . 1 . . 2 1 . 3 . . . 3 . 5 . . . 1 1 4 2 . 3 1 14 6 39 Energy Gun 26 | 1 . . 3 . . . 2 2 . 1 2 . . 1 . . . . . . . . . 1 . . . . . . . . 2 . 1 . 4 . 6 Energy Cannon 19 | . . . . . . . . . 2 . 1 1 . . . . 2 . . 2 . . . . . . . . . 1 . 3 . . . 1 1 . 5 Ballistic Gun 33 | 1 3 . 4 . . . . . 2 . 2 . . . . . . . . 1 . . . . . 2 . . . . . . . . 2 . 1 1 14 Ballistic Cannon 23 | . . . . . . . . . . . 1 . . . . . . . . . . . . 1 . 3 . . . . 1 1 . . . . 3 3 10 Launcher 15 | . . . 1 2 . . . . . 1 . . . . . . . . . . . . . . . . . . . . . . . . . . 5 2 4 Special Weapon 2 | . . . . . . . . . . . . . . . . . . 1 . . . . . 1 . . . . . . . . . . . . . . . Impact Weapon 1 | . . . 1 . . . . . . . . . . . . . . . . . . . . . . . . . . . . . . . . . . . . Slashing Weapon . | . . . . . . . . . . . . . . . . . . . . . . . . . . . . . . . . . . . . . . . . Piercing Weapon . | . . . . . . . . . . . . . . . . . . . . . . . . . . . . . . . . . . . . . . . . Special Melee Weapon 1 | . . . . . . . . . . 1 . . . . . . . . . . . . . . . . . . . . . . . . . . . . . Unidentified Prototypes 66 | . . 1 4 . . . . . 3 3 1 1 . 2 . . . . . 1 1 . . . . 1 1 . . . . 4 1 . 2 3 33 2 2 Corrupted Parts 6 | . . . . . . . . 1 . 1 . 1 . 1 . . . 1 . . . . . . . . . . . . . 1 . . . . . . . System Corruption 32 | . . . . . . . . 3 . 7 . 10 . 7 . . . 3 . . . . . . . . . . . . . 2 . . . . . . . Parts Lost 121 | . 3 1 4 . . 1 . 3 2 . 9 5 . . . . 1 1 . 1 4 . . . . 2 3 . . . 2 13 . . 2 2 13 2 47 Power 7 | . 1 . . . . . . . . . . 1 . . . . . . . . 1 . . . . . . . . . . 2 . . . . . . 2 Propulsion 13 | . . 1 1 . . 1 . 1 . . 4 . . . . . . . . . . . . . . . . . . . . 1 . . . . . . 4 Utility 69 | . . . 1 . . . . 1 1 . 2 3 . . . . 1 1 . . 3 . . . . 2 3 . . . 2 9 . . 2 2 12 2 22 Weapon 32 | . 2 . 2 . . . . 1 1 . 3 1 . . . . . . . 1 . . . . . . . . . . . 1 . . . . 1 . 19 Highest Loss Streak 19 | . 3 1 1 . . 1 . 1 1 . 3 1 . . . . 1 1 . 1 3 . . . . 1 1 . . . 1 7 . . 1 1 3 1 19 To Critical Strikes 3 | . . . 1 . . . . . . . 1 . . . . . . . . . . . . . . . . . . . . 1 . . . . . . . Average Backups 17 | 4 7 5 8 13 13 12 12 12 12 12 11 15 19 21 21 22 21 18 18 18 20 20 21 22 21 22 20 23 23 23 22 22 22 22 22 20 18 18 15 Power 1 | . . . . . . . . . . 1 1 2 1 2 2 3 3 1 1 . . 1 1 2 2 1 1 4 3 3 3 1 1 . . . 1 1 1 Propulsion 1 | 2 4 3 3 6 4 2 3 3 4 1 . . . . . . . . . . . . . . . . . 1 1 1 1 1 1 1 2 . . . 1 Utility 9 | . . 2 1 2 2 2 3 3 2 3 2 5 7 7 8 8 7 8 8 9 12 13 11 11 12 13 11 13 13 12 13 11 15 17 14 13 10 13 8 Weapon 5 | . 1 . 3 5 7 7 6 6 5 6 6 6 8 11 11 11 10 8 9 7 5 5 6 9 7 6 6 4 4 5 3 7 2 2 3 3 4 2 3 Tool/Special . | . . . . . . . . . . . . . . . . . . . . . . . . . . . . . . . . . . . . . . . . Unused Backups 241 | . 3 . 2 . 2 . . 3 . 2 7 18 8 8 6 . 3 5 . 10 5 3 6 1 . 11 8 1 4 1 1 23 2 3 24 14 17 8 32 Power 23 | . . . . . . . . . . . . 1 . 2 . . . 2 . 1 . . . . . 2 2 . 1 . . 2 . . . 1 3 . 6 Propulsion 32 | . 2 . 1 . 1 . . . . . . 2 . . . . 2 . . . . . . . . . . . . . . 2 . . 4 4 3 2 9 Utility 53 | . . . . . . . . 1 . 1 4 1 2 1 1 . 1 . . . 2 2 3 . . 3 . . 1 1 . 8 . 2 6 5 1 2 5 Weapon 129 | . 1 . 1 . 1 . . 2 . 1 3 14 6 3 5 . . 3 . 9 3 1 3 1 . 6 6 1 2 . 1 11 2 1 14 3 10 4 11 Tool/Special 4 | . . . . . . . . . . . . . . 2 . . . . . . . . . . . . . . . . . . . . . 1 . . 1 Average Slot Usage (%) 63 | . 99 99 98 88 70 80 88 93 95 93 65 54 61 55 56 56 53 50 54 53 52 50 50 51 47 50 53 55 55 55 51 55 54 49 50 55 58 55 72 Engine 1 | . 13 14 10 10 10 10 8 7 4 . 7 . . 4 2 . . . . 2 2 . . . . . . . . . . . . . . . . . . Reactor 2 | . . . . . . . . . . . . . . . . . . 3 5 . . 5 5 4 4 4 2 . 3 5 5 3 4 4 4 4 2 3 4 Treads 6 | . 28 27 31 30 30 30 33 32 24 7 10 4 . 5 2 . . 1 5 5 4 . 4 2 . 2 . . 3 1 1 2 . . 1 1 1 1 6 Leg 1 | . . . . . . . . . 6 19 1 . . . 1 6 5 1 . . . . . 1 4 . 2 5 1 3 . . 4 4 2 2 . 1 1 Device 18 | . 14 14 13 10 10 10 8 8 11 8 14 15 28 26 25 25 23 16 16 24 23 22 22 23 18 18 18 20 20 20 12 21 22 20 24 26 24 23 14 Storage 5 | . 14 14 10 10 10 10 8 8 8 8 8 7 12 7 6 6 5 5 5 5 5 5 5 5 4 4 4 5 5 5 5 4 4 4 4 4 5 3 2 Processor 8 | . . . . . . . . . . . . 3 . . . . . . . . . . . 1 4 5 12 15 15 15 16 12 9 4 4 7 10 12 16 Protection 5 | . . . 9 10 10 10 7 11 10 8 1 5 1 3 6 6 5 5 5 2 4 5 5 5 4 4 1 . . . 2 2 3 4 4 4 3 1 8 Energy Gun 1 | . 6 . 2 5 . . 22 23 19 2 2 . . . . . . . . . . . . . . . . . . . . . . . . . . . 1 Energy Cannon 2 | . . . . . . . . . 2 13 2 2 . . 2 6 5 5 5 3 . 4 5 5 5 1 4 5 1 . 3 2 2 2 1 3 3 1 3 Ballistic Gun 2 | . 21 28 17 . . . . . 3 4 5 . . . . . . . . . . . . . . . . . . . . . . . . . . . 3 Ballistic Cannon 2 | . . . . . . . . . . . 1 3 5 5 3 . . . . 1 4 . . . . 3 . . 3 5 1 1 1 2 2 . . 2 3 Peak Build Rating 276 | 7 7 19 24 23 22 24 35 45 54 53 84 109 115 117 119 117 131 122 120 124 125 134 148 155 172 164 156 140 153 152 151 179 179 180 218 216 276 259 255 Average Rating 156 | 4 6 7 15 22 20 23 31 34 41 47 54 95 105 107 111 117 117 112 118 111 112 128 135 146 155 152 137 139 143 144 144 163 171 175 199 202 232 233 214 On Entrance 107 | . 7 7 7 22 18 22 24 35 38 53 40 75 97 105 106 117 117 118 117 120 102 122 130 137 155 154 156 139 140 145 145 148 176 178 177 205 200 236 223 Avg Prop Armor Cover (%) 4 | . . . . . . . . . . 4 . . . . . . . . . . . . . . . . . . . . . . . . . . . . . Naked Turns . | . . . . . . . . . . . . . . . . . . . . . . . . . . . . . . . . . . . . . . . . Heaviest Build 210 | 15 15 15 47 62 51 55 59 59 51 51 50 146 116 133 146 131 137 171 189 189 171 145 179 193 162 187 171 131 138 149 181 197 189 193 188 200 186 166 210 Greatest Support 323 | 40 40 40 60 60 60 60 80 80 83 80 80 126 126 172 172 144 144 144 116 116 212 212 175 148 95 169 154 138 151 156 156 195 195 195 231 264 323 152 195 Greatest Overweight (x) 13 | . . . 1 1 . . . . . . 13 1 . . 3 . . 2 1 1 1 . 1 1 1 1 1 . . 1 1 1 . . 1 . . 1 4 Average Overweight (x) . | . . . . . . . . . . . . . . . . . . . 1 1 . . . 1 1 1 . . . . . . . . . . . . . Largest Inventory Capacity 25 | 8 8 8 15 15 15 15 15 15 15 15 15 25 25 25 25 25 25 25 25 25 25 25 25 25 25 25 25 25 25 25 25 25 25 25 25 25 25 25 25 Average Capacity 21 | 7 8 8 11 15 15 15 15 15 15 15 15 21 25 25 25 25 25 25 25 25 25 25 25 25 25 25 25 25 25 25 25 25 25 25 25 25 25 25 20 Most Carried 25 | 7 8 7 15 15 15 15 15 15 15 15 15 25 25 25 25 25 25 23 21 25 25 25 25 25 25 25 25 25 25 25 25 25 25 25 25 25 25 25 25 Average Carried 20 | 4 7 5 8 13 14 14 14 14 14 14 14 18 21 24 24 25 24 20 20 20 24 24 24 24 23 24 21 24 24 24 23 23 24 24 24 24 24 20 18 Final Capacity 25 | 8 8 8 15 15 15 15 15 15 15 15 15 25 25 25 25 25 25 25 25 25 25 25 25 25 25 25 25 25 25 25 25 25 25 25 25 25 25 25 25 Final Carried 25 | 6 6 7 15 15 15 15 15 15 15 15 11 25 21 25 25 25 23 20 21 22 25 25 25 25 24 25 25 25 25 24 25 25 24 25 25 25 25 25 25 Scrap Engine Consumption 477 | . . . . . . . . . . . 54 33 14 5 10 . . 12 1 21 18 1 15 2 2 32 20 . 4 1 7 41 7 6 50 30 54 25 12 Constructs Created 43 | . . . . . . . . . . . 5 1 1 1 . . . 1 . . . . . 3 . 2 4 . 2 2 . 1 . 1 4 3 5 7 . Constructs Modified 459 | . . . . . . . . . . . 47 29 3 3 19 . . 19 1 11 13 8 8 10 1 28 33 . 9 10 6 34 2 4 34 41 47 33 6 Class Distribution -------------------- 41% | Construct 23% | Scavenger-Gunner 10% | Scavenger-Construct 7% | Scavenger-Mutant 6% | Scavenger-Tank 3% | Mutant Dominant Class ---------------- Mutant | -10/Materials Mutant | -10/Mines Scavenger-Mutant | -9/Materials Scavenger-Mutant | -9/Mines Scavenger-Mutant | -9/Exiles Scavenger-Mutant | -8/Mines Scavenger-Skirmisher | -8/Materials Scavenger-Skirmisher | -8/Garrison Scavenger-Skirmisher | -8/Materials Tank | -8/Storage Construct | -8/Recycling Construct | -6/Factory Construct | -6/Garrison Construct | -6/Factory Construct | -6/Garrison Construct | -6/Factory Construct | -6/Garrison Construct | -5/Factory Construct | -5/Waste Construct | -5/Factory Construct | -5/Garrison Construct | -5/Factory Construct | -5/Garrison Construct | -4/Factory Construct | -4/Waste Construct | -4/Factory Construct | -4/Extension Scavenger-Construct | -4/Cetus Construct | -4/Archives Construct | -4/Hub_04(d) Scavenger-Construct | -4/Garrison Scavenger-Construct | -3/Research Scavenger-Construct | -3/Testing Construct | -3/Garrison Construct | -2/Research Commander-Construct | -2/Quarantine Construct | -2/Protoforge Scavenger-Gunner | -1/Access Scavenger-Gunner | -1/Command Resources | -11 -10 -10 -9 -9 -9 -8 -8 -8 -8 -8 -8 -6 -6 -6 -6 -6 -6 -5 -5 -5 -5 -5 -5 -4 -4 -4 -4 -4 -4 -4 -4 -3 -3 -3 -2 -2 -2 -1 -1 ----------- Run | Yrd Mat Min Mat Min Exi Min Mat Gar Mat Sto Rec Fac Gar Fac Gar Fac Gar Fac Was Fac Gar Fac Gar Fac Was Fac Ext Cet Arc Hub Gar Res Tes Gar Res Qua Frg Acc Com Matter Collected 64640 | 233 220 78 1028 357 600 70 295 217 296 240 1161 935 71 246 642 . 1180 288 . 723 559 346 477 100 . 490 1095 160 475 283 1428 8210 86 425 1329 1430 16843 6911 15113 Remotely 19063 | . . . . . . . . . . . . . . . . . . . . . . . . . . . . . . . . . . . . . 8422 4941 5700 Salvage Created 155811 | 15 391 44 1517 492 . 63 527 1204 1252 781 3494 3547 1876 2846 1848 . 2421 1104 . 1876 2150 1891 1461 1085 1693 6683 10280 320 1118 1695 1887 14577 420 845 10182 9346 32213 19111 13556 Parts 4751 | 2 29 6 82 19 . 14 27 66 65 34 134 151 64 84 60 . 85 22 . 94 92 68 58 26 12 328 252 15 46 30 52 319 34 43 254 308 975 391 410 Haulers Intercepted 28 | . 1 . 4 . . . 1 . 3 1 1 2 . 3 . . . . . 1 . 3 . . . 2 . . . 3 . 2 . . 1 . . . . Recyclers Shooed 11 | . 1 . 2 . . . 1 . . . 2 2 . . . . . 1 . 1 . . . . . . . . . . . . . . . . . . 1 Parts Field Recycled . | . . . . . . . . . . . . . . . . . . . . . . . . . . . . . . . . . . . . . . . . Retrieved Matter . | . . . . . . . . . . . . . . . . . . . . . . . . . . . . . . . . . . . . . . . . Parts Self-Destructed . | . . . . . . . . . . . . . . . . . . . . . . . . . . . . . . . . . . . . . . . . Prevented . | . . . . . . . . . . . . . . . . . . . . . . . . . . . . . . . . . . . . . . . . Parts Restored 1 | . . . . . . . . . . . . . . . . . . . . . . . . . . . . . . . . . . . . . 1 . . Faulty 1 | . . . . . . . . . . . . . . . . . . . . . . . . . . . . . . . . . . . . . 1 . . Kills | -11 -10 -10 -9 -9 -9 -8 -8 -8 -8 -8 -8 -6 -6 -6 -6 -6 -6 -5 -5 -5 -5 -5 -5 -4 -4 -4 -4 -4 -4 -4 -4 -3 -3 -3 -2 -2 -2 -1 -1 ------- Run | Yrd Mat Min Mat Min Exi Min Mat Gar Mat Sto Rec Fac Gar Fac Gar Fac Gar Fac Was Fac Gar Fac Gar Fac Was Fac Ext Cet Arc Hub Gar Res Tes Gar Res Qua Frg Acc Com Combat Hostiles Destroyed 2198 | . 9 3 33 21 . 8 8 36 22 13 40 52 19 31 29 . 47 14 . 26 22 23 18 11 6 61 115 4 13 16 25 178 4 10 135 130 500 286 230 Melee 8 | . . . 1 . . . . . . . . . . . . . 2 . . 1 . . . . . . . . . . . 1 . . . 2 1 . . Guns 120 | . 9 3 24 . . . 7 34 18 . 22 1 . . . . . . . . . . . . . . . . . . . . . . . . . . 2 Cannons 1287 | . . . . . . . . . 2 7 10 38 17 19 23 . 31 11 . 20 22 21 14 7 1 58 112 4 13 13 18 105 4 8 41 123 227 240 78 AOE 481 | . . . 8 21 . 8 1 2 . 4 7 6 . 3 . . . . . 5 . 1 . 1 . 2 . . . . . 12 . . 13 2 198 39 148 Classes Destroyed 36 | 1 5 . 4 4 . . 2 3 . . 3 1 . . 1 . . . . . . . . . 1 2 1 . . . . 2 . . 2 . 4 . . Worker 43 | . . . 6 1 . . . . 2 . 1 4 . 1 . . . . . 4 . 1 . . . 7 . . . . . 2 . . 6 . 1 1 6 Builder 28 | . . . 1 . . 1 1 . 2 . . 1 . 1 . . . . . 3 . 1 . . . 5 1 . . 2 . 1 . . 2 . 3 3 . Tunneler 8 | 1 . . . . . . 1 . . . 1 1 . 1 . . . . . . . . . . . . . . . 1 . . . . . . . 2 . Hauler 28 | . 1 . 4 . . . 1 . 3 1 1 2 . 3 . . . . . 1 . 3 . . . 2 . . . 3 . 2 . . 1 . . . . Recycler 47 | . . . 1 1 . . 2 . 2 . 9 3 . 4 . . . 2 . 2 . . . 1 . 10 3 . . . . 1 1 . 1 . . 2 2 Carrier 29 | . . . . . . . . . . . . . . . . . . . . . . . . . . . 1 . . . . 3 . . 3 1 16 . 5 Mechanic 69 | . . . . . . . . . . . . . . . . . . . . . . . . . . 2 7 . . . . 7 . . 4 2 19 17 11 Operator 14 | . 1 . . . . . . . . . . 2 . 2 . . . . . . . . . . . . . . . 1 . 1 . . . . 5 . 2 Drone 3 | . . . . . . . . . . . . . . . . . . . . . . . . . . . . . . . . . . . . . 3 . . Watcher 62 | . 3 . 4 . . . 1 . . 1 . 4 . 3 . . 1 . . 4 . 2 . 1 . 8 . . . 3 . 5 . . 2 1 7 3 9 Swarmer 189 | . 3 3 8 8 . 8 2 7 6 . 3 11 3 2 7 . 15 5 . 10 5 2 . . . 4 4 . . . 9 16 . 2 6 7 8 . 25 Cutter 19 | . . . . . . . . . . . . . . . . . . . . . . . . . . 2 . . . . . . . . . . . 17 . Saboteur 90 | . . . . . . . . 2 . . . . . . . . 3 . . . . . . . . 1 3 . . . . 9 . . 9 7 23 23 10 Grunt 758 | . 6 . 16 1 . . 2 12 8 6 10 16 5 14 11 . 10 2 . 7 14 11 10 5 . 19 64 . 4 5 11 63 1 . 40 48 196 73 68 Brawler 118 | . . . . . . . 1 3 1 1 . 2 1 2 . . 1 4 . 1 . 1 . . . 2 8 . . 1 . 6 . . 11 8 38 15 11 Duelist 135 | . . . . 1 . . . . . 2 3 2 . 1 . . . . . 2 . . . 1 . 2 13 . . . 1 10 . . 10 12 49 15 11 Protector 94 | . . . . . . . 1 . . 1 3 . . . . . . . . . . . . . . . 6 . . . . 5 . . 8 12 29 16 13 Researcher 3 | . . . . . . . . . . . . . . . . . . . . . . . . . . . . . . . . . . . . . 3 . . Sentry 130 | . . . 9 . . . 2 7 6 3 12 5 6 2 . . 7 . . 1 . 1 2 1 . 7 7 . 4 3 1 5 . 2 6 . 21 4 6 Demolisher 9 | . . . . 2 . . . . . . . . . . . . . . . . . 1 . . . . 2 . . . . . . . . . 4 . . Specialist 20 | . . . . . . . . 1 . . . . . . . . 4 . . . . . 1 . . . . . . . . 8 . 3 . . 3 . . Hunter 137 | . . . . . . . 1 3 1 . 5 6 4 1 4 . . 1 . 1 . . 1 2 . 4 6 . 2 2 2 12 . 1 10 11 21 23 13 Programmer 252 | . . . . . . . . . . . 1 9 . 5 5 . 6 2 . 4 . 7 2 2 . 18 2 . . 5 . 32 3 1 21 19 46 40 22 Heavy 13 | . . . . . . . . . . . . 1 . 1 . . 1 . . . . . . . . 1 . . . . . 2 . . 2 . . 3 2 Q-Series 3 | . . . . . . . . . . . . . . . . . . . . . . . . . . . . . . . . . . . 1 . 2 . . Behemoth 21 | . . . . . . . . 1 . . . . . 1 1 . . . . . 1 . 2 . . 1 . . . . 1 1 . 1 . . 1 6 4 Compactor 6 | . . . . . . . . . . . . . . . . . . . . . . . . . 6 . . . . . . . . . . . . . . Cetus Guard 4 | . . . . . . . . . . . . . . . . . . . . . . . . . . . . 4 . . . . . . . . . . . M Guard 2 | . . . . . . . . . . . . . . . . . . . . . . . . . . . . . . . . . . . . . . . 2 Lightning 1 | . . . . . . . . . . . . . . . . . . . . . . . . . . . . . . . . 1 . . . . . . . Hotshot 13 | . . . . . . . . . . . . . . . . . . . . . . . . . . . . . . . . . . . . . 13 . . Decapitator 9 | . . . . . . . . . . . . . . . . . . . . . . . . . . . . . . . . . . . . . 9 . . Immortal 6 | . . . . . . . . . . . . . . . . . . . . . . . . . . . . . . . . . . . . . 6 . . Overlord 1 | . . . . . . . . . . . . . . . . . . . . . . . . . . . . . . . . . . . . . 1 . . Combat Programmer 2 | . . . . . . . . . . . . . . . . . . . . . . . . . . . . . . . . . . . . . . . 2 Investigator 9 | . . . . . . . . . . . . . . . . . . . . . . . . . . . . . . . . 2 . . 2 . 1 1 3 Striker 57 | . . . . . . . . . . . . . . . 1 . . . . . 2 . . . . . . . . . . 2 . . 7 5 4 20 16 Executioner 62 | . . . . . . . . . . . . . . . . . . . . . . . . . . . . . . . . 6 . . 3 1 8 27 17 Alpha 7 6 | . . . . . . . . . . . . . . . . . . . . . . . . . . . . . . . . . . . . . 4 . 2 V-Series 11 | . . . . . . . . . . . . . . . . . . . . . . . . . . . . . . . . . . . . . 11 . . Scientist 2 | . . . . . . . . . . . 2 . . . . . . . . . . . . . . . . . . . . . . . . . . . . Scrapper 3 | . . . . . . . . . . . 3 . . . . . . . . . . . . . . . . . . . . . . . . . . . . Tinkerer 1 | . . . . . . . . . . . . . . . . . . . . . . . . . . . . . . . . . . . . . 1 . . Assembled 9 | . . . . 9 . . . . . . . . . . . . . . . . . . . . . . . . . . . . . . . . . . . Golem 1 | . . . . . . . . . . . . . . . . . . . . . . . . . . . . . . . . . . . 1 . . . . Thug 11 | . . . . . . . . . . . . . . . . . . . . . . . . . . . . . 3 . . . . . . . . 4 4 Savage 2 | . . . . . . . . . . . . . . 2 . . . . . . . . . . . . . . . . . . . . . . . . . Guerrilla 2 | . . . . 1 . . . . . . . . . . . . . . . . . . . . . . . . . . . 1 . . . . . . . Best Kill Streak 52 | 1 4 3 8 9 . 4 4 4 6 5 14 10 4 7 6 . 13 4 . 6 10 6 8 3 4 10 17 4 4 6 13 52 3 3 37 26 44 34 36 Combat Bots Only 47 | . 2 3 5 9 . 4 3 4 5 5 8 7 4 5 6 . 13 4 . 5 10 5 7 2 4 5 15 4 4 4 14 47 3 3 34 26 42 32 32 Max Kills in Single Turn 12 | 1 1 1 4 3 . 4 3 2 2 1 3 4 2 2 2 . 2 1 . 6 2 2 2 2 1 2 2 1 1 2 1 3 1 2 7 1 10 9 12 Gunslinging 1 | . . . 1 . . . . 1 1 . . . . . . . . . . . . . . . . . . . . . . . . . . . . . . Exploded 12 | . . . 4 3 . 3 1 2 . 1 3 3 . 1 . . . . . 5 . 1 . 1 . 2 . . . . . 3 . . 2 1 9 9 12 Melee 1 | . . . 1 . . . . . . . . . . . . . 1 . . 1 . . . . . . . . . . . 1 . . . 1 1 . . Uniques/NPCs Destroyed 3 | . . . . . . . . . . . . . . . . . . . . . . . . . . . 1 . . . . . . . . . . . 2 A7 (-4/Extension) MAIN.C Shell (-1/Command) MAIN.C (-1/Command) Combat | -11 -10 -10 -9 -9 -9 -8 -8 -8 -8 -8 -8 -6 -6 -6 -6 -6 -6 -5 -5 -5 -5 -5 -5 -4 -4 -4 -4 -4 -4 -4 -4 -3 -3 -3 -2 -2 -2 -1 -1 -------- Run | Yrd Mat Min Mat Min Exi Min Mat Gar Mat Sto Rec Fac Gar Fac Gar Fac Gar Fac Was Fac Gar Fac Gar Fac Was Fac Ext Cet Arc Hub Gar Res Tes Gar Res Qua Frg Acc Com Hostile Shots Fired 6217 | . 95 7 150 41 . 6 35 109 71 30 116 276 118 70 93 . 196 48 . 138 89 41 47 34 . 162 308 31 37 57 71 912 37 64 290 368 804 423 843 Missed 1869 | . 21 3 42 13 . 3 13 25 23 8 40 81 52 25 20 . 69 17 . 35 13 16 11 13 . 53 106 17 12 17 23 287 8 28 102 104 279 136 154 Intercepted 12 | . . . . . . . . . . . . . . . . . . . . . . . . . . . . . . . . . . . . . 1 . 11 Deflected 26 | . . . . . . . . . . . . . . . . . . . . . . . . . . . . . . . . . . . . 23 . 3 . Hits 4348 | . 74 4 108 28 . 3 22 84 48 22 76 195 66 45 73 . 127 31 . 103 76 25 36 21 . 109 202 14 25 40 48 625 29 36 188 264 525 287 689 Melee 83 | . . . . . . . . 1 . 1 . 1 . . . . 2 . . 6 . . . 2 . 5 1 . . . . 4 1 . . 9 26 13 11 Projectile 4265 | . 74 4 108 28 . 3 22 83 48 21 76 194 66 45 73 . 125 31 . 97 76 25 36 19 . 104 201 14 25 40 48 621 28 36 188 255 499 274 678 AOE 36 | . . . . 3 . . . . . . . 3 . 1 . . . . . . . 6 . . . . 2 . . . . 3 . . . . 8 5 5 Critical Strikes 207 | . . . 3 . . . 1 3 . 3 2 7 1 2 3 . 5 1 . 5 1 . . 1 . 7 13 . 1 3 3 35 4 1 8 10 43 18 23 Actively Blocked 70 | . . . . . . . . . . 1 . 7 1 . . . . . . . . . . . . 2 8 . . . . 3 . . . . 33 15 . Part Disruptions 8 | . . . . . . . . . . . . . . . . . . . . 1 . . 1 . . . . . . . . 2 . . . . 1 . 3 Damage Taken 88888 | . 767 31 1289 558 . 110 374 1511 570 441 1266 3395 589 600 918 . 1163 505 . 2065 1408 614 257 326 2 2433 3893 322 576 743 781 10463 764 708 4814 5804 12928 5868 20032 Core 6440 | . 121 10 124 30 . . 46 115 33 63 95 261 47 43 . . 87 19 . 226 68 48 27 . . 127 280 25 . . 52 529 25 12 368 193 1092 544 1730 Absorbed by Shields 10840 | . . . 3 . . . . . . . . . 43 219 411 . 665 67 . . . 53 178 119 . 12 141 . . . 17 2577 . 20 . . 1938 2073 2304 Reduced by Siege Mode 2180 | . . . . . . . . . . . . 116 . . 20 . . . . . 41 . 2 . . . . . . . 40 416 . . . . 106 140 1299 Redirected to Core 134 | . . . . . . . . . . . . . . . . . . . . . . . . . . . . . . . . . . . . . 134 . . Redirected to Shielding 170 | . . . . . . . . 12 11 24 . . . . . . . . . . . . . . . . . . . . . . . . . . . . 123 Ignored by Resistances 4342 | . . . 61 . . . . . 18 . . 176 . . 29 . . . . . . 46 . . . . 320 17 . . 16 126 . . . 193 471 . 2869 Regen/Repaired (Parts) 39548 | . . . . . . . 390 . . . 102 1690 239 790 929 . . 509 41 576 623 14 351 34 123 1022 2998 . 538 332 953 4340 191 441 4608 5028 6986 4268 1432 Core Remaining (%) 61 | 100 . 47 . . . 92 . . . . 80 . . . . . 73 . . . . . 70 . . . . . . . 77 . . 47 . . 10 . 21 Volleys Fired 5584 | 1 66 3 121 25 . 5 24 68 53 36 190 195 59 78 78 1 136 45 6 64 56 55 27 22 13 205 289 9 28 60 50 372 7 11 172 374 820 498 1262 Largest 5 | 2 2 2 2 1 . 1 3 3 3 3 3 2 1 1 1 1 2 1 1 1 1 1 1 1 1 1 1 1 1 1 1 1 1 1 1 1 2 2 5 Hottest 586 | 70 70 40 89 39 . 33 191 191 201 233 250 133 79 59 105 105 226 389 7 424 185 171 103 103 250 103 184 102 102 102 122 501 492 492 522 182 298 147 586 Shots Fired 7811 | 2 131 6 214 25 . 5 64 186 155 73 265 195 58 78 71 1 131 45 6 60 56 55 27 22 12 202 284 9 28 60 49 364 7 11 172 364 779 500 3039 Gun 2661 | 2 131 6 203 . . . 59 184 135 17 202 6 . . . . . . . . . . . . . . . . . . . . . . 1 . 2 1 1712 Cannon 4901 | . . . . . . . . . 20 46 50 189 58 78 71 1 131 43 . 59 56 55 27 22 12 202 284 9 28 60 49 364 7 11 171 364 702 481 1251 Launcher 240 | . . . 11 25 . 5 5 2 . 10 13 . . . . . . . . . . . . . . . . . . . . . . . . . 75 18 76 Special 9 | . . . . . . . . . . . . . . . . . . 2 6 1 . . . . . . . . . . . . . . . . . . . Kinetic 2495 | 1 116 6 193 . . . . . 18 15 62 43 31 . 22 . . . . 44 32 5 . . . 143 198 . 10 . 32 165 4 6 69 233 223 451 373 Thermal 4095 | 1 15 . 8 . . . 59 175 137 48 186 79 . . . . 8 8 . 3 24 48 8 . 12 59 86 9 18 . . 51 3 . 93 131 271 15 2540 Explosive 179 | . . . 11 2 . 5 5 2 . . . . . . . . . . . . . . . . . . . . . . . . . . . . 75 16 63 Electromagnetic 964 | . . . 2 23 . . . 9 . 10 17 73 27 78 49 1 123 35 . 12 . 2 19 22 . . . . . 60 17 148 . 5 10 . 143 16 63 Entropic 67 | . . . . . . . . . . . . . . . . . . . . . . . . . . . . . . . . . . . . . 67 . . Robot Hit Streak 164 | 2 18 10 13 8 . . 7 40 18 31 55 24 30 35 18 . 11 9 15 17 23 12 11 6 12 17 14 9 12 9 9 21 8 23 25 10 41 74 164 Robot Miss Streak 7 | . 4 2 5 1 . . 6 7 6 2 5 4 6 4 3 . 5 2 . 4 4 6 3 4 2 4 6 1 2 3 3 4 2 4 6 7 3 1 2 Penetration Max 2 | . . . . . . . . . 1 . 1 . . . 1 . . . . 1 1 . . . . . 1 . 1 . . 1 . . 1 . 2 2 1 Secondary Targets 13 | . 1 1 1 . . . 2 7 1 . . . . . . . . . . . . . . . . . . . . . . . . . . . . . . Max Gunslinging Chain 1 | . 1 1 1 . . . 1 1 1 . . . . . . . . . . . . . . . . . . . . . . . . . . . . . . Capacitor 561 | . . . . . . . . . . . . . . . . . . . . . . . . . . . . . . . . . . . 98 360 . . 103 Shots Hit Robots 3918 | 2 86 4 142 10 . . 45 146 114 35 201 120 43 70 50 . 76 32 6 39 53 46 23 17 7 134 206 8 25 36 36 218 5 11 105 213 538 426 590 Core Hits 3413 | 1 23 3 63 28 . 10 56 173 76 23 84 59 30 55 38 . 29 12 . 35 32 27 16 12 13 69 87 4 10 19 13 226 9 20 311 99 799 327 522 Critical Kills 28 | . . . . . . . . . 2 1 2 1 . . . . . . . . . . . . . 1 2 . . . . 2 . . . . 2 10 5 Critical Parts Destroyed 37 | . . . 3 . . . . . . . . . . . 2 . . . . . . . . . . . . . . . . 2 . . . . . 22 8 Critical Strikes 118 | . . . 3 . . . . 4 15 1 12 1 . . 2 . . . . . . . 1 1 . 1 2 . . 3 3 6 . . 1 8 2 33 19 Burn 27 | . . . . . . . . 4 13 . 10 . . . . . . . . . . . . . . . . . . . . . . . . . . . . Meltdown 9 | . . . . . . . . . 1 1 . 1 . . . . . . . . . . . . . 1 2 . . . . . . . . . 2 . 1 Destroy 62 | . . . 3 . . . . . 1 . 2 . . . 2 . . . . . . . . . . . . . . . . 4 . . . . . 33 17 Blast 11 | . . . . . . . . . . . . . . . . . . . . . . . . . . . . . . . 1 . . . 1 8 . . 1 Corrupt 9 | . . . . . . . . . . . . . . . . . . . . . . . 1 1 . . . . . 3 2 2 . . . . . . . Melee Attacks 3 | . . . 1 . . . . . . 1 . . . . . . . . . . . . . . . . . . . . . . 1 . . . . . . Impact 1 | . . . 1 . . . . . . . . . . . . . . . . . . . . . . . . . . . . . . . . . . . . Slashing . | . . . . . . . . . . . . . . . . . . . . . . . . . . . . . . . . . . . . . . . . Piercing 1 | . . . . . . . . . . . . . . . . . . . . . . . . . . . . . . . . . 1 . . . . . . Sneak Attacks 1 | . . . . . . . . . . 1 . . . . . . . . . . . . . . . . . . . . . . . . . . . . . Combat Hostiles . | . . . . . . . . . . . . . . . . . . . . . . . . . . . . . . . . . . . . . . . . Follow-up Attacks . | . . . . . . . . . . . . . . . . . . . . . . . . . . . . . . . . . . . . . . . . Damage Inflicted 599550 | 23 1109 50 3044 1224 . 402 933 2760 2223 1409 4988 10302 4433 5637 4085 . 6077 2542 . 4901 6027 5051 2843 1783 892 24142 37507 1267 4641 5646 5727 41898 1033 1790 20033 38896 149251 97275 97706 Guns 15509 | 23 1109 50 2107 . . . 773 2536 1884 161 3151 168 . . . . . . . . . . . . . . . . . . . . . . . . 10 . 3537 Cannons 429419 | . . . . . . . . . 339 664 1056 9655 4433 5183 3885 . 6077 2542 . 3938 6027 4884 2843 1678 457 23138 37483 1267 4641 5623 5727 36435 921 1708 12546 38009 84722 83147 40391 Explosions 154205 | . . . 908 1214 . 377 160 224 . 584 747 478 . 425 200 . . . . 942 . 159 . 105 435 1001 . . . . . 5425 85 82 7471 822 64492 14128 53741 Melee 26 | . . . 24 . . . . . . . . . . . . . . . . . . . . . . . . . . . . . 2 . . . . . . Ramming 391 | . . . 5 10 . 25 . . . . 34 1 . 29 . . . . . 21 . 8 . . . 3 24 . . 23 . 38 25 . 16 65 27 . 37 Kinetic 255735 | 10 984 50 1981 . . . . . 253 140 874 1610 2553 . 1464 . . . . 3303 3502 369 . . . 17391 27498 . 1922 . 3113 20140 536 565 7651 23164 33604 80556 22502 Thermal 136634 | 13 125 . 374 . . . 773 2375 1970 685 3429 5656 . 248 200 . 341 535 . 622 2525 4521 927 105 892 5747 9985 1267 2719 . . 6037 385 82 11472 15260 34143 1795 21426 Explosive 129998 | . . . 642 261 . 377 160 224 . . . . . 100 . . . . . 320 . . . . . 1001 . . . . . . 85 . 158 407 58394 14128 53741 Electromagnetic 68150 | . . . 18 953 . . . 161 . 584 651 3035 1880 5260 2421 . 5736 2007 . 635 . 153 1916 1678 . . . . . 5623 2614 15683 . 1143 736 . 14467 796 . Impact 24 | . . . 24 . . . . . . . . . . . . . . . . . . . . . . . . . . . . . . . . . . . . Slashing . | . . . . . . . . . . . . . . . . . . . . . . . . . . . . . . . . . . . . . . . . Piercing 2 | . . . . . . . . . . . . . . . . . . . . . . . . . . . . . . . . . 2 . . . . . . Entropic 8616 | . . . . . . . . . . . . . . . . . . . . . . . . . . . . . . . . . . . . . 8616 . . Highest Corruption 57 | . 3 3 10 . . . . 3 3 11 11 12 8 21 39 39 44 9 26 30 . . 1 10 33 33 14 . 14 5 5 44 21 38 8 19 57 10 56 Average Corruption 12 | . 2 3 5 . . . . 2 3 4 11 4 8 15 38 39 42 4 21 20 . . 1 4 23 11 10 . 14 3 5 12 20 35 6 13 25 5 7 Corruption Purged 36 | . . . . . . . . . . . . . . . . . . . . 25 . . . . . . . . . . . 8 . . . . . . 3 Corruption Blocked . | . . . . . . . . . . . . . . . . . . . . . . . . . . . . . . . . . . . . . . . . Effects 1361 | . 9 4 6 . . . . 5 30 12 8 54 17 35 61 4 73 24 14 84 . . 6 6 12 59 77 . 2 12 9 82 12 15 72 88 278 56 135 Message Errors 339 | . 3 1 2 . . . . 1 7 6 2 9 7 7 16 . 15 9 2 15 . . 2 . 2 16 22 . 1 4 3 20 3 4 24 30 56 13 37 Matter Fused 324 | . 3 . 1 . . . . . 9 1 1 18 2 11 16 1 20 8 3 25 . . 3 . 2 9 17 . . 3 . 15 3 7 24 17 58 17 30 Heat Flow Errors 154 | . 1 1 . . . . . 1 4 . 3 9 2 4 9 3 8 2 1 6 . . . 2 4 10 3 . . 5 2 11 2 . 4 4 25 9 19 Energy Discharges 136 | . 1 1 . . . . . 1 2 2 2 4 2 4 5 . 8 1 4 11 . . . . 2 9 6 . . . 2 9 1 1 8 7 27 4 12 Parts Rejected 20 | . . . . . . . . . . . . . . 1 . . . 1 1 3 . . . . . . . . . . . 2 . 1 . . 7 3 1 Parts Fused 13 | . . . . . . . . 1 1 . . . . . . . 2 . . . . . . . . . 1 . . . . 1 . . 1 2 1 1 2 Data Loss (minor) 141 | . . 1 1 . . . . . 2 2 . 7 2 7 5 . 5 3 . 13 . . . 4 1 7 18 . 1 . 1 8 . . 5 7 24 6 11 Data Loss (major) 58 | . . . . . . . . . . . . 1 1 . 2 . 4 . 1 6 . . 1 . . 3 2 . . . . 5 1 2 1 7 12 2 7 Misfires 13 | . . . . . . . . 1 3 . . . . . . . . . . . . . . . . . . . . . . . . . 1 . 1 1 6 Alerts 30 | . . . . . . . . . . 1 . 3 . 1 . . 2 . . 1 . . . . . 2 3 . . . . 3 . . 2 1 4 . 7 Misdirections 24 | . . . 1 . . . . . . . . . . . 1 . . . 2 . . . . . . . . . . . . . 2 . . 3 15 . . Weapon Failures 109 | . 1 . 1 . . . . . 2 . . 3 1 . 7 . 9 . . 4 . . . . 1 3 5 . . . 1 8 . . 2 10 48 . 3 Overload Shots . | . . . . . . . . . . . . . . . . . . . . . . . . . . . . . . . . . . . . . . . . Overflow Damage 84169 | . . . 111 70 . 51 2 82 10 32 81 1455 137 275 275 . 693 398 . 798 536 730 156 160 . 5672 8111 44 652 742 1619 8920 65 10 346 7911 18672 16576 8777 Projectiles 76302 | . . . . . . . . . 10 32 46 1455 137 269 272 . 693 398 . 673 536 697 156 160 . 5672 8111 44 652 742 1619 8911 65 10 276 7883 15113 15744 5926 Explosions 7867 | . . . 111 70 . 51 2 82 . . 35 . . 6 3 . . . . 125 . 33 . . . . . . . . . 9 . . 70 28 3559 832 2851 Melee . | . . . . . . . . . . . . . . . . . . . . . . . . . . . . . . . . . . . . . . . . Knockbacks 544 | . . . . . . . . . . . 2 6 11 . 11 . . . . 11 3 1 . . . 16 58 . 3 . 9 61 6 5 26 57 77 156 25 Impact 5 | . . . . . . . . . . . 1 . . . . . . . . . . . . . . . 1 . . . . 1 . . . 1 . . 1 Kinetic 438 | . . . . . . . . . . . 1 5 9 . 9 . . . . 11 3 1 . . . 15 40 . 2 . 6 44 6 4 25 46 70 117 24 Secondary 101 | . . . . . . . . . . . . 1 2 . 2 . . . . . . . . . . 1 17 . 1 . 3 16 . 1 1 10 7 39 . Self-Inflicted Damage 2528 | . . . . 139 . 92 . 20 . 86 7 . . . 63 . . . . 299 . 4 . . 2 . . . . . . 302 105 91 128 194 628 . 368 Shots 143 | . . . . 9 . 3 . 1 . 5 1 . . . 1 . . . . 4 . . . . 1 . . . . . . 36 1 1 24 3 44 . 9 Rammed 21 | . . . 3 2 . 1 . . . . 3 . . 1 . . . . . 2 . 1 . . . . 1 . . . . 3 . . . . 3 . 1 Targets Rammed 37 | . . . 3 3 . 1 . . . . 6 1 . 1 . . . . . 3 . 1 . . . 1 1 . . 2 . 5 1 . 1 3 3 . 1 Kicked 11 | . . . . . . . . . . . 3 . . . . . . . . . . . . . . . . . . 2 . 2 1 . . 3 . . . Crushed 5 | . . . . 1 . . . . . . . 1 . . . . . . . 1 . . . . . 1 . . . . . . . . 1 . . . . Highest Temperature 793 | 9 245 143 277 11 . . 98 87 185 90 150 261 210 233 247 189 221 370 166 541 285 114 90 199 246 179 190 . 29 222 84 607 374 364 367 203 793 300 360 Average Temperature 79 | 6 46 77 70 11 . . 29 17 74 34 38 39 43 30 42 78 48 142 118 189 104 33 45 44 126 22 51 . 18 39 30 144 191 139 121 92 114 83 55 Received Heat Transfer 9248 | . 318 . 576 26 . . 144 399 189 189 351 528 142 124 166 . 47 12 . 327 192 63 38 44 . 349 696 63 105 212 106 1244 12 111 207 558 1306 151 253 Effects 42 | . . . . . . . . . . . . . . . . . . . . 7 . . . . . . . . . . . 19 3 . 2 . 9 . 2 Shutdowns 14 | . . . . . . . . . . . . . . . . . . . . 1 . . . . . . . . . . . 7 1 . 1 . 3 . 1 Energy Bleed 5 | . . . . . . . . . . . . . . . . . . . . 1 . . . . . . . . . . . 1 . . 1 . 1 . 1 Interference 13 | . . . . . . . . . . . . . . . . . . . . 5 . . . . . . . . . . . 5 2 . . . 1 . . Matter Decay 6 | . . . . . . . . . . . . . . . . . . . . . . . . . . . . . . . . 3 . . . . 3 . . Short Circuit 1 | . . . . . . . . . . . . . . . . . . . . . . . . . . . . . . . . 1 . . . . . . . Damage (minor) 2 | . . . . . . . . . . . . . . . . . . . . . . . . . . . . . . . . 1 . . . . 1 . . Damage (core) 1 | . . . . . . . . . . . . . . . . . . . . . . . . . . . . . . . . 1 . . . . . . . Siege Activations 68 | . . . . . . . . . . . . 8 . 5 3 . . . . . 2 . 2 1 . . . . . . 1 14 . . . . 11 6 15 Total Turns 2845 | . . . . . . . . . . . . 161 . 14 64 . . . . . 38 . 11 3 . . . . . . 16 343 . . . . 112 798 1285 Longest Duration 458 | . . . . . . . . . . . . 62 . 5 48 . . . . . 23 . 10 3 . . . . . . 16 52 . . . . 55 326 458 Martial Activations . | . . . . . . . . . . . . . . . . . . . . . . . . . . . . . . . . . . . . . . . . Shielding Activations 13 | . . . . . . . . . . . . . . . . . . . . . . . . 1 . . . . . . . . . . . 7 . 5 . Total Turns 254 | . . . . . . . . . . . . . . . . . . . . . . . . 4 . . . . . . . . . . . 198 . 52 . Longest Duration 73 | . . . . . . . . . . . . . . . . . . . . . . . . 4 . . . . . . . . . . . 73 . 26 . Robots Disrupted . | . . . . . . . . . . . . . . . . . . . . . . . . . . . . . . . . . . . . . . . . Combat Hostiles . | . . . . . . . . . . . . . . . . . . . . . . . . . . . . . . . . . . . . . . . . Robots Corrupted 157 | . . . . . . . . . . 1 . 10 7 10 8 . 14 3 . . . . 4 4 . . . . . 5 10 26 . 2 3 3 37 10 . Combat Hostiles 132 | . . . . . . . . . . 1 . 7 2 9 6 . 14 3 . . . . 4 3 . . . . . 3 8 24 . 2 3 3 33 7 . Parts Fried 765 | . . . . 2 . . . . . 3 3 34 22 46 25 . 69 18 . 6 . 1 19 24 . 5 2 . . 66 22 179 . 20 8 16 140 35 . Impact Corruptions 71 | . . . . . . . . . . . . 3 . . . . . . . . . . . . . 1 2 . . . 1 9 . . . 9 5 41 . Robots Melted 186 | . . . . . . . . . 3 1 2 1 . . . . . . . . . 1 . . 5 1 3 . . . . 41 . . 84 . 43 . 1 Combat Hostiles 168 | . . . . . . . . . 2 1 . . . . . . . . . . . 1 . . 5 1 3 . . . . 36 . . 77 . 41 . 1 Parts Melted 731 | . . . 4 . . . 1 3 20 1 19 3 . . 1 . 2 . . . 5 10 1 . 23 . 7 . 4 . . 175 4 . 333 . 107 7 1 Heat Transferred 148176 | 37 370 . 361 . . . 1180 3985 4904 1109 8535 2900 . 100 150 . 259 222 . 400 1258 3300 600 50 3317 1329 2420 400 850 . . 24078 333 50 40521 275 38491 296 6096 Parts Sabotaged 11 | . . . . . . . . 2 . . . . . . . . 1 . . . . . . . . . 2 . . . . 3 . . . 1 2 . . Parts Stolen . | . . . . . . . . . . . . . . . . . . . . . . . . . . . . . . . . . . . . . . . . Parts Stripped . | . . . . . . . . . . . . . . . . . . . . . . . . . . . . . . . . . . . . . . . . Power Chain Reactions 21 | . . . . 2 . . . . . . 2 2 . 3 1 . . . . . . . . . . . . . . . . 2 . 1 . 3 . . 5 Alert | -11 -10 -10 -9 -9 -9 -8 -8 -8 -8 -8 -8 -6 -6 -6 -6 -6 -6 -5 -5 -5 -5 -5 -5 -4 -4 -4 -4 -4 -4 -4 -4 -3 -3 -3 -2 -2 -2 -1 -1 ------- Run | Yrd Mat Min Mat Min Exi Min Mat Gar Mat Sto Rec Fac Gar Fac Gar Fac Gar Fac Was Fac Gar Fac Gar Fac Was Fac Ext Cet Arc Hub Gar Res Tes Gar Res Qua Frg Acc Com Maximum Alert Level 5 | . . . 3 2 . . 2 4 3 2 1 4 5 4 5 3 5 3 1 4 5 4 4 3 1 4 5 5 4 3 4 5 5 5 5 5 5 5 5 Low Security (%) 8 | 100 100 100 56 . . 100 13 . . . 45 12 . . . . . . 41 18 . . . . 44 41 . . . . . . . . . . . . . Level 1 6 | . . . 24 79 . . 17 1 . 38 54 19 . . . . . . 58 . . . . . 55 10 . . . 8 . . . . . . . . . Level 2 6 | . . . 7 20 . . 69 21 . 61 . 40 . . . . 5 . . 8 . . . 44 . 13 1 . . 75 8 9 . . . . . . . Level 3 13 | . . . 11 . . . . 42 100 . . 18 24 72 14 100 14 100 . 10 22 57 10 55 . 21 15 . 98 16 16 19 . . . . . . . Level 4 10 | . . . . . . . . 34 . . . 9 74 27 30 . 53 . . 62 64 42 89 . . 11 9 . 1 . 75 20 . . 9 . . . . Level 5 27 | . . . . . . . . . . . . . . . 55 . 27 . . . 12 . . . . . 41 67 . . . . 100 100 5 19 81 3 62 High Security 27 | . . . . . . . . . . . . . . . . . . . . . . . . . . . 31 32 . . . 50 . . 84 80 18 96 37 Max Security . | . . . . . . . . . . . . . . . . . . . . . . . . . . . . . . . . . . . . . . . . Sterilizations 6 | . . . . . . . . . . . . . . . . . . 1 . . . . . . . . 1 . . . . 1 . . 1 1 . 1 . Peak Influence 18624 | 5 140 102 1015 468 . 102 552 1574 1082 512 368 1231 1605 1366 1807 948 1879 1042 252 1218 1637 1447 1433 756 261 1535 3710 2351 1100 932 1354 4927 2929 2516 5307 6152 17771 18204 18624 Initial 11650 | . . 19 35 389 . . 14 345 767 456 192 585 859 842 933 948 643 986 252 106 813 858 1012 751 261 84 751 2077 1100 289 639 761 2771 2174 1415 2985 3404 10662 11650 Average 4999 | . 46 42 267 370 . 62 395 971 929 409 202 589 1278 1054 1465 934 1363 850 205 896 1221 1078 1244 691 194 473 2268 2261 892 550 1139 2535 2827 2357 4238 5266 8263 15858 16754 Influence Increases 71664 | 5 362 172 1706 317 . 218 776 1299 763 435 1114 2495 746 1350 874 1 1246 376 . 1598 884 1023 421 449 . 2252 3849 364 301 1023 735 4936 248 342 4150 3559 15346 7632 8297 Destroy 0b10 Robot/C 43480 | . 180 60 800 240 . 160 300 780 440 240 680 1080 400 700 580 . 940 280 . 520 540 560 360 220 . 1220 2420 80 260 360 500 3560 80 200 2620 2400 9800 5420 4500 Destroy 0b10 Robot/NC 2180 | 5 25 . 80 10 . 5 35 . 45 15 140 90 30 75 15 . 5 10 . 70 30 40 . 10 . 170 85 . . 40 15 120 5 . 120 80 340 220 250 Destroy Leader 6030 | . 48 10 176 40 . 20 84 30 106 44 . 252 20 172 40 . 50 40 . 80 40 132 20 42 . 280 280 . 20 96 40 534 . 30 376 292 1184 746 706 Allied During Kill 1399 | . . . 30 . . . 69 25 . . . 8 55 66 . . . . . . 50 99 . . . . 385 . . . . 28 6 . . 16 540 . 22 Successful Hack 345 | . 18 . 61 . . . 4 14 . . 19 63 26 12 16 . . 5 . . 14 14 14 . . 6 38 . . . . . . . . . . . 21 Select Force Hacks 270 | . 30 . 30 . . . . . 30 . 180 . . . . . . . . . . . . . . . . . . . . . . . . . . . . Disable Machine 3210 | . . . 75 . . . 15 . 30 105 60 150 30 300 60 . 60 15 . 390 15 60 . 60 . 150 30 . 15 30 15 60 45 30 120 195 810 45 240 Anti-Garrison Action 1100 | . . . . . . . . 400 . . . . 100 . . . 50 . . 150 100 . . . . . . . . . 100 . . . . . . 150 50 Destroy Structure 7558 | . 1 . 41 27 . 33 39 20 7 31 35 77 85 25 58 1 81 26 . 298 80 118 12 102 . 122 164 2 6 38 50 232 82 52 780 396 1731 663 2043 Advance Influence 450 | . . . . . . . . . . . . 450 . . . . . . . . . . . . . . . . . . . . . . . . . . . Partial Spotted 90 | . . . . . . . . . . . . 15 . . . . . . . . . . . . . . . . . 15 . 15 30 15 . . . . . Lose Combat Pursuer 2550 | . 60 . 15 . . . . 30 105 . . 120 . . 105 . 60 . . 90 15 . 15 15 . 120 315 . . . 15 255 . 15 30 180 405 120 465 Miscellaneous 3002 | . . 102 398 . . . 230 . . . . 190 . . . . . . . . . . . . . 184 132 282 . 444 . 132 . . 104 . 536 268 . Influence Decreases 52793 | 5 312 130 799 984 332 180 282 257 1255 1022 1286 1590 369 1621 401 889 286 1535 568 588 409 1213 435 1134 627 839 1673 1723 1985 936 295 1363 2276 725 1359 2814 3627 7199 7470 Entered New Map 37857 | . . 31 57 610 332 . 24 187 807 626 303 188 369 763 401 859 276 893 468 46 349 779 435 682 487 37 783 1633 1411 538 275 593 2156 725 1101 2322 2648 7109 6554 Time Decay 11259 | 5 282 89 562 374 . 170 238 . 428 246 636 712 . 538 . 30 . 482 100 532 . 294 . 452 120 682 680 90 574 398 . 620 120 . 238 342 769 70 386 Search Patrol Dispatched 400 | . . . . . . . . . . . . 300 . . . . . . . . . . . . . 100 . . . . . . . . . . . . . Lost Part 1180 | . 30 10 40 . . 10 . 30 20 . 60 50 . . . . 10 10 . 10 40 . . . . 20 30 . . . 20 130 . . 20 20 130 20 470 Lost Ally 910 | . . . 140 . . . 20 40 . . . 40 . 20 . . . . . . 20 140 . . 20 . 180 . . . . 20 . . . 130 80 . 60 Purge Threat 1187 | . . . . . . . . . . 150 287 300 . 300 . . . 150 . . . . . . . . . . . . . . . . . . . . . Squads Dispatched 444 | . 3 . 9 . . . 2 . 4 3 . 15 . 8 . . . 2 . 9 . 11 . 4 . 14 39 . 2 4 . 49 2 . 28 31 101 63 41 Investigation 15 | . 2 . 4 . . . . . 1 . . 1 . 1 . . . . . . . . . . . 1 . . 2 . . 2 . . . . 1 . . Extermination 42 | . . . . . . . . . . . . 7 . 4 . . . 1 . 2 . 1 . 2 . 5 . . . 3 . 5 . . 1 1 7 . 3 Reinforcement 45 | . 1 . 4 . . . 1 . 2 2 . 7 . 1 . . . . . 2 . 2 . . . 4 1 . . 1 . 4 . . 4 2 2 3 2 Assault 336 | . . . 1 . . . 1 . 1 1 . . . 2 . . . 1 . 5 . 2 . 2 . 4 38 . . . . 38 2 . 23 28 91 60 36 Garrison 6 | . . . . . . . . . . . . . . . . . . . . . . 6 . . . . . . . . . . . . . . . . . Intercept . | . . . . . . . . . . . . . . . . . . . . . . . . . . . . . . . . . . . . . . . . Searches Triggered 4 | . . . . . . . . . . . . 3 . . . . . . . . . . . . . 1 . . . . . . . . . . . . . Construction Impeded 5 | . . . . . . . 1 . . 1 . 1 . . . . . . . . . 1 . . . . . . . . . . . . 1 . . . . Haulers Reinforced 5 | . . . . . . . . . . . . 2 . . . . . . . . . 1 . . . 1 . . . . . 1 . . . . . . . Active Scanning Responses . | . . . . . . . . . . . . . . . . . . . . . . . . . . . . . . . . . . . . . . . . Cargo Convoy Interrupts . | . . . . . . . . . . . . . . . . . . . . . . . . . . . . . . . . . . . . . . . . Stealth | -11 -10 -10 -9 -9 -9 -8 -8 -8 -8 -8 -8 -6 -6 -6 -6 -6 -6 -5 -5 -5 -5 -5 -5 -4 -4 -4 -4 -4 -4 -4 -4 -3 -3 -3 -2 -2 -2 -1 -1 --------- Run | Yrd Mat Min Mat Min Exi Min Mat Gar Mat Sto Rec Fac Gar Fac Gar Fac Gar Fac Was Fac Gar Fac Gar Fac Was Fac Ext Cet Arc Hub Gar Res Tes Gar Res Qua Frg Acc Com Distress Signals 40 | . . . 3 . . . . . 1 1 . 3 . 1 . . . . . 3 . 4 . 1 . 1 4 1 . 2 . 2 . . . . 3 . 10 Communications Jammed 47 | . . . . . . . . . . . . . . . . . . . . . . . . . . 7 . . . . . . . . . 7 33 . . Distress Signals 32 | . . . . . . . . . . . . . . . . . . . . . . . . . . . . . . . . . . . . 7 25 . . Times Spotted 2667 | . 15 3 48 26 . 5 17 41 32 17 25 69 20 39 30 . 46 16 6 45 25 31 18 16 4 88 176 9 12 27 29 255 11 11 159 191 505 331 269 Peak Tracking Total 24 | . 3 3 5 9 . 4 5 5 4 5 5 5 4 5 6 . 13 4 2 6 7 5 5 4 2 7 15 5 4 5 6 16 6 3 15 15 24 18 23 Tactical Retreats 131 | . 2 . 1 1 . . . 2 5 . . 7 . . 7 . 3 . . 4 1 . 1 1 1 6 17 . . . 1 10 . 1 2 8 20 7 23 Traps | -11 -10 -10 -9 -9 -9 -8 -8 -8 -8 -8 -8 -6 -6 -6 -6 -6 -6 -5 -5 -5 -5 -5 -5 -4 -4 -4 -4 -4 -4 -4 -4 -3 -3 -3 -2 -2 -2 -1 -1 ------- Run | Yrd Mat Min Mat Min Exi Min Mat Gar Mat Sto Rec Fac Gar Fac Gar Fac Gar Fac Was Fac Gar Fac Gar Fac Was Fac Ext Cet Arc Hub Gar Res Tes Gar Res Qua Frg Acc Com Traps Triggered 64 | . 2 . 1 . . . . 4 . . . 5 4 4 5 . 2 3 . 4 . . 2 1 . . 1 . . 3 4 3 . . 4 2 6 3 1 Indirectly 1 | . . . . . . . . . . . . 1 . . . . . . . . . . . . . . . . . . . . . . . . . . . Trap Hack Attempts . | . . . . . . . . . . . . . . . . . . . . . . . . . . . . . . . . . . . . . . . . Triggered . | . . . . . . . . . . . . . . . . . . . . . . . . . . . . . . . . . . . . . . . . Disarmed . | . . . . . . . . . . . . . . . . . . . . . . . . . . . . . . . . . . . . . . . . Reprogrammed . | . . . . . . . . . . . . . . . . . . . . . . . . . . . . . . . . . . . . . . . . Reused . | . . . . . . . . . . . . . . . . . . . . . . . . . . . . . . . . . . . . . . . . Traps Extracted . | . . . . . . . . . . . . . . . . . . . . . . . . . . . . . . . . . . . . . . . . Installed . | . . . . . . . . . . . . . . . . . . . . . . . . . . . . . . . . . . . . . . . . Triggered . | . . . . . . . . . . . . . . . . . . . . . . . . . . . . . . . . . . . . . . . . Most Traps Carried 2 | . . . . . . . . . . . 2 . . . . . . . . . . . . . . 1 . . . . . . . . . . . . . Machines | -11 -10 -10 -9 -9 -9 -8 -8 -8 -8 -8 -8 -6 -6 -6 -6 -6 -6 -5 -5 -5 -5 -5 -5 -4 -4 -4 -4 -4 -4 -4 -4 -3 -3 -3 -2 -2 -2 -1 -1 ---------- Run | Yrd Mat Min Mat Min Exi Min Mat Gar Mat Sto Rec Fac Gar Fac Gar Fac Gar Fac Was Fac Gar Fac Gar Fac Was Fac Ext Cet Arc Hub Gar Res Tes Gar Res Qua Frg Acc Com Machines Disabled 263 | . 1 . 5 . . . 1 3 2 7 5 10 5 20 4 . 7 1 . 27 2 4 2 4 . 10 2 . 1 2 3 6 3 2 9 18 66 13 18 Max in Single Turn 18 | . 1 . 2 . . . 1 1 1 2 2 4 2 10 1 . 2 1 . 18 1 3 1 3 . 2 1 . 1 1 1 1 1 2 3 1 12 1 2 Garrison Access 16 | . . . . . . . . . . 1 . 2 . . . . . . . 1 . . . 1 . 1 . . . . . 3 . . 2 1 1 3 . Garrison Relay 6 | . . . . . . . . 3 . . . . 1 . . . . . . . . . . . . . . . . . 2 . . . . . . . . Phase Generator 5 | . . . . . . . . 1 . . . . 1 . . . 1 . . . . . . . . . . . . . 1 . . . . . . . 1 Energy Cycler 4 | . . . . . . . . . . . . . . . . . . . . . . . . . . . 2 . . . . . . . . . . 2 . Machines Repaired . | . . . . . . . . . . . . . . . . . . . . . . . . . . . . . . . . . . . . . . . . Machines Dismantled . | . . . . . . . . . . . . . . . . . . . . . . . . . . . . . . . . . . . . . . . . Machines Sabotaged . | . . . . . . . . . . . . . . . . . . . . . . . . . . . . . . . . . . . . . . . . Overloaded Fab Kills . | . . . . . . . . . . . . . . . . . . . . . . . . . . . . . . . . . . . . . . . . Hacking | -11 -10 -10 -9 -9 -9 -8 -8 -8 -8 -8 -8 -6 -6 -6 -6 -6 -6 -5 -5 -5 -5 -5 -5 -4 -4 -4 -4 -4 -4 -4 -4 -3 -3 -3 -2 -2 -2 -1 -1 --------- Run | Yrd Mat Min Mat Min Exi Min Mat Gar Mat Sto Rec Fac Gar Fac Gar Fac Gar Fac Was Fac Gar Fac Gar Fac Was Fac Ext Cet Arc Hub Gar Res Tes Gar Res Qua Frg Acc Com Machines Accessed 132 | . 8 . 9 . 1 . 2 3 4 1 12 22 2 8 2 1 4 3 . 2 2 5 1 3 . 7 7 . . 4 1 6 1 . 2 2 4 . 3 Terminals 75 | . 7 . 7 . . . . 3 2 . 5 8 2 2 2 . 4 2 . . 2 1 1 2 . 4 7 . . 3 1 4 . . 1 . 2 . 3 Fabricators 5 | . . . . . . . . . . . . 4 . 1 . . . . . . . . . . . . . . . . . . . . . . . . . Repair Stations 3 | . . . . . . . 1 . . . . 2 . . . . . . . . . . . . . . . . . . . . . . . . . . . Recycling Units 19 | . 1 . 1 . . . . . 1 . 6 2 . 3 . . . 1 . 1 . 1 . . . 2 . . . . . . . . . . . . . Scanalyzers 10 | . . . 1 . . . . . 1 . . 3 . 1 . . . . . . . 1 . . . . . . . . . 1 . . . 1 1 . . Garrison Access 18 | . . . . . . . 1 . . 1 . 3 . 1 . 1 . . . 1 . 2 . 1 . 1 . . . 1 . 1 1 . 1 1 1 . . Total Hacks 249 | . 19 . 20 . 1 . 3 4 6 1 30 46 4 12 2 1 6 7 . 5 3 10 1 5 . 12 20 . . 6 1 8 1 . 2 2 4 . 7 Successful 118 | . 9 . 12 . 1 . 3 2 2 1 19 24 2 7 1 1 . 2 . 2 1 5 1 1 . 5 5 . . 1 . 1 1 . 1 1 3 . 4 Failed 131 | . 10 . 8 . . . . 2 4 . 11 22 2 5 1 . 6 5 . 3 2 5 . 4 . 7 15 . . 5 1 7 . . 1 1 1 . 3 Catastrophic 38 | . 1 . 2 . . . . 2 2 . 1 3 . 3 . . 2 1 . . 2 . . . . 4 5 . . 4 1 3 . . 1 . . . 1 Database Lockouts . | . . . . . . . . . . . . . . . . . . . . . . . . . . . . . . . . . . . . . . . . Manual 118 | . 19 . 15 . 1 . . 1 4 2 20 15 3 1 . . . 6 . . 2 3 . 1 . 2 11 . . 4 . 3 . . 1 . . . 4 Terminals 158 | . 17 . 17 . . . . 4 3 . 13 23 4 3 2 . 6 6 . . 3 3 1 4 . 7 20 . . 5 1 6 . . 1 . 2 . 7 Fabricators 7 | . . . . . . . . . . . . 5 . 2 . . . . . . . . . . . . . . . . . . . . . . . . . Repair Stations 5 | . . . . . . . 2 . . . . 3 . . . . . . . . . . . . . . . . . . . . . . . . . . . Recycling Units 38 | . 2 . 1 . . . . . 1 . 15 3 . 4 . . . 1 . 4 . 3 . . . 4 . . . . . . . . . . . . . Scanalyzers 20 | . . . 2 . . . . . 2 . . 9 . 2 . . . . . . . 2 . . . . . . . . . 1 . . . 1 1 . . Garrison Access 18 | . . . . . . . 1 . . 1 . 3 . 1 . 1 . . . 1 . 2 . 1 . 1 . . . 1 . 1 1 . 1 1 1 . . Terminal Hacks 31 | . . . 1 . 1 . . 1 . . 4 6 1 2 1 . . 1 . . 1 . 1 . . 1 4 . . . . . . . . . 2 . 4 Record 1 | . . . . . . . . . . . . . . . . . . . . . . . . . . . . . . . . . . . . . 1 . . Prototype ID Bank 2 | . . . . . . . . . . . . 1 . . . . . . . . . . . . . . 1 . . . . . . . . . . . . Open Door 2 | . . . . . . . . . . . . . . . . . . . . . . . . . . . 2 . . . . . . . . . . . . Emergency Access Points 2 | . . . . . . . . . . . . . 1 . . . . . . . 1 . . . . . . . . . . . . . . . . . . Scanalyzer Index 1 | . . . . . . . . . . . . 1 . . . . . . . . . . . . . . . . . . . . . . . . . . . Alert Level 1 | . . . 1 . . . . . . . . . . . . . . . . . . . . . . . . . . . . . . . . . . . . Unreport Threat 7 | . . . . . . . . . . . 2 2 . 2 . . . 1 . . . . . . . . . . . . . . . . . . . . . Locate Traps 5 | . . . . . . . . . . . . 1 . . . . . . . . . . . . . 1 1 . . . . . . . . . . . 2 Security Status 1 | . . . . . . . . . . . . . . . . . . . . . . . . . . . . . . . . . . . . . . . 1 Recall Reinforcements 1 | . . . . . . . . . . . . 1 . . . . . . . . . . . . . . . . . . . . . . . . . . . Zone Layout 1 | . . . . . . . . . . . . . . . . . . . . . . . . . . . . . . . . . . . . . . . 1 Garrison Registry 3 | . . . . . . . . 1 . . . . . . 1 . . . . . . . 1 . . . . . . . . . . . . . . . . Proto ID Catalog 2 | . . . . . 1 . . . . . . . . . . . . . . . . . . . . . . . . . . . . . . . 1 . . Release Object 2 | . . . . . . . . . . . 2 . . . . . . . . . . . . . . . . . . . . . . . . . . . . Fabricator Hacks 2 | . . . . . . . . . . . . 1 . 1 . . . . . . . . . . . . . . . . . . . . . . . . . Network Status 1 | . . . . . . . . . . . . 1 . . . . . . . . . . . . . . . . . . . . . . . . . . . Build 1 | . . . . . . . . . . . . . . 1 . . . . . . . . . . . . . . . . . . . . . . . . . Repair Station Hacks 4 | . . . . . . . 2 . . . . 2 . . . . . . . . . . . . . . . . . . . . . . . . . . . Scan Component 2 | . . . . . . . 1 . . . . 1 . . . . . . . . . . . . . . . . . . . . . . . . . . . Repair 2 | . . . . . . . 1 . . . . 1 . . . . . . . . . . . . . . . . . . . . . . . . . . . Recycling Unit Hacks 11 | . . . . . . . . . . . 3 2 . 2 . . . . . 1 . 1 . . . 2 . . . . . . . . . . . . . Retrieve Components 11 | . . . . . . . . . . . 3 2 . 2 . . . . . 1 . 1 . . . 2 . . . . . . . . . . . . . Scanalyzer 10 | . . . 1 . . . . . 1 . . 6 . 1 . . . . . . . 1 . . . . . . . . . . . . . . . . . Insert Component 1 | . . . . . . . . . . . . . . 1 . . . . . . . . . . . . . . . . . . . . . . . . . Retrieve Study 9 | . . . 1 . . . . . 1 . . 6 . . . . . . . . . 1 . . . . . . . . . . . . . . . . . Garrison Access Hacks 18 | . . . . . . . 1 . . 1 . 3 . 1 . 1 . . . 1 . 2 . 1 . 1 . . . 1 . 1 1 . 1 1 1 . . Unlock Access 9 | . . . . . . . 1 . . . . 1 . 1 . 1 . . . 1 . 2 . . . . . . . 1 . . 1 . . . . . . Seal Access 9 | . . . . . . . . . . 1 . 2 . . . . . . . . . . . 1 . 1 . . . . . 1 . . 1 1 1 . . Unauthorized Hacks 42 | . 9 . 10 . . . . 1 1 . 12 4 1 . . . . 1 . . . 1 . . . 1 1 . . . . . . . . . . . . Terminals 28 | . 8 . 9 . . . . 1 . . 4 1 1 . . . . 1 . . . 1 . . . 1 1 . . . . . . . . . . . . Botnet 9 | . 1 . 1 . . . . 1 . . 1 1 1 . . . . 1 . . . . . . . 1 1 . . . . . . . . . . . . Operators 2 | . 1 . 1 . . . . . . . . . . . . . . . . . . . . . . . . . . . . . . . . . . . . Skim 17 | . 6 . 7 . . . . . . . 3 . . . . . . . . . . 1 . . . . . . . . . . . . . . . . . Fabricators 3 | . . . . . . . . . . . . 3 . . . . . . . . . . . . . . . . . . . . . . . . . . . Liberate 3 | . . . . . . . . . . . . 3 . . . . . . . . . . . . . . . . . . . . . . . . . . . Repair Stations . | . . . . . . . . . . . . . . . . . . . . . . . . . . . . . . . . . . . . . . . . Recycling Units 11 | . 1 . 1 . . . . . 1 . 8 . . . . . . . . . . . . . . . . . . . . . . . . . . . . Reject 1 | . . . . . . . . . . . 1 . . . . . . . . . . . . . . . . . . . . . . . . . . . . Mask 1 | . . . . . . . . . . . 1 . . . . . . . . . . . . . . . . . . . . . . . . . . . . Tunnel 9 | . 1 . 1 . . . . . 1 . 6 . . . . . . . . . . . . . . . . . . . . . . . . . . . . Scanalyzers . | . . . . . . . . . . . . . . . . . . . . . . . . . . . . . . . . . . . . . . . . Garrison Access . | . . . . . . . . . . . . . . . . . . . . . . . . . . . . . . . . . . . . . . . . Data Cores Recovered 3 | . . . . . . . . . . . . 2 . 1 . . . . . . . . . . . . . . . . . . . . . . . . . Used 1 | . . . . . . . . . . . . 1 . . . . . . . . . . . . . . . . . . . . . . . . . . . Hacking Detections 95 | . 6 . 8 . . . 2 1 3 . 6 13 2 5 2 . 4 3 . 2 2 4 1 2 . 6 6 . . 4 1 5 1 . 1 1 1 . 3 Full Trace Events 8 | . 1 . . . . . . 1 . . 3 . . . . . . . . . . . . . . 1 . . . . . 2 . . . . . . . Feedback Events 1 | . . . . . . . . 1 . . . . . . . . . . . . . . . . . . . . . . . . . . . . . . . Corruption 1 | . . . . . . . . 1 . . . . . . . . . . . . . . . . . . . . . . . . . . . . . . . Feedback Blocked . | . . . . . . . . . . . . . . . . . . . . . . . . . . . . . . . . . . . . . . . . Robot Schematics Acquired 2 | . . . . . . . . . . . . . . . . . . . . . . . . . . . . . . . . . . . . . 2 . . Robots Built . | . . . . . . . . . . . . . . . . . . . . . . . . . . . . . . . . . . . . . . . . Authchips . | . . . . . . . . . . . . . . . . . . . . . . . . . . . . . . . . . . . . . . . . Time . | . . . . . . . . . . . . . . . . . . . . . . . . . . . . . . . . . . . . . . . . Total Robot Build Rating . | . . . . . . . . . . . . . . . . . . . . . . . . . . . . . . . . . . . . . . . . Part Schematics Acquired 2 | . . . . . . . . . . . . . . . . . . . . . . . . . . . . . . . . . . . . . 2 . . Parts Built 2 | . . . . . . . . . . . . . . 2 . . . . . . . . . . . . . . . . . . . . . . . . . Authchips . | . . . . . . . . . . . . . . . . . . . . . . . . . . . . . . . . . . . . . . . . Time 128 | . . . . . . . . . . . . . . 128 . . . . . . . . . . . . . . . . . . . . . . . . . Total Part Build Rating 16 | . . . . . . . . . . . . . . 16 . . . . . . . . . . . . . . . . . . . . . . . . . Part Studies Acquired 9 | . . . 1 . . . . . 1 . . 6 . . . . . . . . . 1 . . . . . . . . . . . . . . . . . Parts Repaired 2 | . . . . . . . 1 . . . . 1 . . . . . . . . . . . . . . . . . . . . . . . . . . . Time 70 | . . . . . . . 44 . . . . 26 . . . . . . . . . . . . . . . . . . . . . . . . . . . Parts Recycled . | . . . . . . . . . . . . . . . . . . . . . . . . . . . . . . . . . . . . . . . . Recycled Matter . | . . . . . . . . . . . . . . . . . . . . . . . . . . . . . . . . . . . . . . . . Retrieved Matter . | . . . . . . . . . . . . . . . . . . . . . . . . . . . . . . . . . . . . . . . . Retrieved Components 27 | . . . . . . . . . . . 9 10 . 1 . . . . . 2 . 3 . . . 2 . . . . . . . . . . . . . Parts Scanalyzed . | . . . . . . . . . . . . . . . . . . . . . . . . . . . . . . . . . . . . . . . . Part Schematics Acquired . | . . . . . . . . . . . . . . . . . . . . . . . . . . . . . . . . . . . . . . . . Parts Damaged . | . . . . . . . . . . . . . . . . . . . . . . . . . . . . . . . . . . . . . . . . Bothacking | -11 -10 -10 -9 -9 -9 -8 -8 -8 -8 -8 -8 -6 -6 -6 -6 -6 -6 -5 -5 -5 -5 -5 -5 -4 -4 -4 -4 -4 -4 -4 -4 -3 -3 -3 -2 -2 -2 -1 -1 ------------ Run | Yrd Mat Min Mat Min Exi Min Mat Gar Mat Sto Rec Fac Gar Fac Gar Fac Gar Fac Was Fac Gar Fac Gar Fac Was Fac Ext Cet Arc Hub Gar Res Tes Gar Res Qua Frg Acc Com Used RIF Installer 8 | . . . . . . . . 1 . . . . 1 . 1 . 1 . . . 1 . 1 . . . . . . . 1 . . 1 . . . . . Hotswap 1 | . . . . . . . . . . . . . . . . . . . . . 1 . . . . . . . . . . . . . . . . . . Signal Jammer 1 | . . . . . . . . . . . . . . . 1 . . . . . . . . . . . . . . . . . . . . . . . . Zone Cloak 1 | . . . . . . . . . . . . . . . . . . . . . . . . . . . . . . . . . . 1 . . . . . Patrol Navigation 1 | . . . . . . . . . . . . . . . . . . . . . . . 1 . . . . . . . . . . . . . . . . Alert ID Control 1 | . . . . . . . . . . . . . . . . . . . . . . . . . . . . . . . 1 . . . . . . . . Structural Interface 1 | . . . . . . . . . . . . . 1 . . . . . . . . . . . . . . . . . . . . . . . . . . Program Shield 1 | . . . . . . . . . 1 . . . . . . . . . . . . . . . . . . . . . . . . . . . . . . Autoassimilate 1 | . . . . . . . . . . . . . . . . . 1 . . . . . . . . . . . . . . . . . . . . . . Robots Hacked 8 | . . . . . . . . . . 1 . . . . . . . 1 6 . . . . . . . . . . . . . . . . . . . . Non-combat 2 | . . . . . . . . . . 1 . . . . . . . 1 . . . . . . . . . . . . . . . . . . . . . Combat 6 | . . . . . . . . . . . . . . . . . . . 6 . . . . . . . . . . . . . . . . . . . . Robot Hacks Applied 8 | . . . . . . . . . . 1 . . . . . . . 1 6 . . . . . . . . . . . . . . . . . . . . find_chute 1 | . . . . . . . . . . . . . . . . . . 1 . . . . . . . . . . . . . . . . . . . . . purge_threat 1 | . . . . . . . . . . 1 . . . . . . . . . . . . . . . . . . . . . . . . . . . . . ignore_targets 6 | . . . . . . . . . . . . . . . . . . . 6 . . . . . . . . . . . . . . . . . . . . Relay Couplers Released 41 | . . . . . . . . 11 . . . . 3 4 . . . . . 3 . . . . . . . . . . 9 2 . . 3 3 . 3 . Machine Destruction 37 | . . . . . . . . 11 . . . . 3 . . . . . . 3 . . . . . . . . . . 9 2 . . 3 3 . 3 . Programmers 4 | . . . . . . . . . . . . . . 4 . . . . . . . . . . . . . . . . . . . . . . . . . Attached 2 | . . . . . . . . . . 1 . . . . . . . 1 . . . . . . . . . . . . . . . . . . . . . Fabnet Peak Effective % . | . . . . . . . . . . . . . . . . . . . . . . . . . . . . . . . . . . . . . . . . Robots Rewired 9 | . . . . . . . . . . . . . 1 . . . . . . . 1 . . . . . 7 . . . . . . . . . . . . Allies Hacked 1 | . . . . . . . . . . . . . . . . . . . . . . 1 . . . . . . . . . . . . . . . . . Hacks Repelled . | . . . . . . . . . . . . . . . . . . . . . . . . . . . . . . . . . . . . . . . . Allies | -11 -10 -10 -9 -9 -9 -8 -8 -8 -8 -8 -8 -6 -6 -6 -6 -6 -6 -5 -5 -5 -5 -5 -5 -4 -4 -4 -4 -4 -4 -4 -4 -3 -3 -3 -2 -2 -2 -1 -1 -------- Run | Yrd Mat Min Mat Min Exi Min Mat Gar Mat Sto Rec Fac Gar Fac Gar Fac Gar Fac Was Fac Gar Fac Gar Fac Was Fac Ext Cet Arc Hub Gar Res Tes Gar Res Qua Frg Acc Com Total Allies 53 | . . 1 7 . . . 4 . . . . 3 1 . . . . . . . 3 5 . . 1 . 10 . . . . 4 1 . . 5 5 . 3 Largest Group 9 | . . 1 4 . . . 4 2 . . . 2 1 1 . . . . . . 2 4 . . 1 . 9 . . . . 2 1 . . 5 5 . 3 Highest-Rated Group 477 | . . 31 40 . . . 84 42 . . . 142 99 99 . . . . . . 179 179 . . 46 . 477 . . . . 110 47 . . 295 320 . 357 Highest-Rated Ally 159 | . . 31 31 . . . 21 21 . . . 142 99 99 . . . . . . 99 99 . . 46 . 159 . . . . 110 47 . . 59 64 . 119 Total Orders 5 | . . . . . . . . . . . . . . . . . . . . . . . . . . . . . . . . . 3 . . 1 1 . . STAY 3 | . . . . . . . . . . . . . . . . . . . . . . . . . . . . . . . . . 2 . . . 1 . . FOLLOW 1 | . . . . . . . . . . . . . . . . . . . . . . . . . . . . . . . . . 1 . . . . . . EXPLORE 1 | . . . . . . . . . . . . . . . . . . . . . . . . . . . . . . . . . . . . 1 . . . Ally Attacks 334 | . . . 54 . . . 31 22 . . . 11 4 9 . . . . . . 11 42 . . 16 . 57 . . . . 10 . . . 38 16 . 13 Total Damage 9590 | . . . 616 . . . 610 385 . . . 486 136 301 . . . . . . 884 1031 . . 321 . 2242 . . . . 192 . . . 762 740 . 884 Kills 52 | . . . 7 . . . 8 3 . . . 3 1 4 . . . . . . 5 6 . . . . 12 . . . . . . . . 1 1 . 1 Allies Corrupted 1 | . . . . . . . . . . . . . . . . . . . . . . . . . . . . . . . . . . . . . 1 . . Allies Melted 2 | . . . . . . . . . . . . . . . . . . . . . . 1 . . . . . . . . . 1 . . . . . . . X0-1V1 Amusement Gains 930 | . 9 . . 92 . . 5 30 . . 90 50 30 15 . . . . . . . . . . . . 43 57 . 5 20 60 32 . 54 58 101 33 146 Average Entertainment 78 | . 8 5 1 88 . 23 20 31 38 18 58 56 71 94 100 100 100 100 100 100 100 100 100 100 100 99 94 61 40 21 36 76 15 46 92 88 97 99 87 Good Acts 466 | . . 1 34 3 . 1 5 9 9 4 26 21 9 13 9 1 8 3 . 5 7 9 5 3 3 20 23 1 13 3 4 39 2 . 10 37 53 34 39 Bad Acts 323 | . . 1 43 . . . 2 3 8 . 11 18 2 7 2 . 8 6 1 1 11 . 1 2 2 4 17 2 7 6 1 23 7 6 21 5 41 20 34 Intel | -11 -10 -10 -9 -9 -9 -8 -8 -8 -8 -8 -8 -6 -6 -6 -6 -6 -6 -5 -5 -5 -5 -5 -5 -4 -4 -4 -4 -4 -4 -4 -4 -3 -3 -3 -2 -2 -2 -1 -1 ------- Run | Yrd Mat Min Mat Min Exi Min Mat Gar Mat Sto Rec Fac Gar Fac Gar Fac Gar Fac Was Fac Gar Fac Gar Fac Was Fac Ext Cet Arc Hub Gar Res Tes Gar Res Qua Frg Acc Com Active Infowar (turns) 58654 | 11 1135 213 1521 . . . . . . . . 1141 . . . . 1 . . 257 21 . . 243 254 3342 3934 285 1752 941 1004 3339 250 307 3316 3953 5347 4593 21494 Optics 54354 | . . . . . . . . . . . . . . . . . . . . . . . . 243 254 3342 3934 285 1752 941 1004 3339 250 307 3316 3953 5347 4593 21494 Sensors 4332 | . . . . . . . . . . . . 1129 . . . . . . . 257 21 . . . . 182 . . . . . 2580 . . . 163 . . . IFF 12 | . . . . . . . . . . . . 12 . . . . . . . . . . . . . . . . . . . . . . . . . . . Terrain 29 | . . . . . . . . . . . . . . . . . . . . . . . . . . . . . . . . . . . 29 . . . . Seismic 2880 | 11 1135 213 1521 . . . . . . . . . . . . . . . . . . . . . . . . . . . . . . . . . . . . Machine Analysis 4 | . . . . . . . . . . . . . . . . . . . . . . . . . . . 1 . . . . . . . . 3 . . . Cloaking 7519 | . . . . . . . . . . . . . . . . . . . . . . . . . . . . . . . . . . . . . 2063 4582 874 Jamming 1814 | . . . 219 . . . . . . . . . . . . . 1 . . . . . . . . 73 . . . . . 40 . . . 296 1185 . . ECM 4 | . . . . . . . . . . . . . . . . . . . . . . . . . . . . . . . . . . . 2 . 2 . . Robot Analysis Total . | . . . . . . . . . . . . . . . . . . . . . . . . . . . . . . . . . . . . . . . . Derelict Logs Recovered 1 | . . . . 1 . . . . . . . . . . . . . . . . . . . . . . . . . . . . . . . . . . . Drone Launches 3 | . . . . . . . . . . . . . . . . . . . . . . . . . . . . . . . . . . . . 3 . . . Drone Recoveries . | . . . . . . . . . . . . . . . . . . . . . . . . . . . . . . . . . . . . . . . . Exploration | -11 -10 -10 -9 -9 -9 -8 -8 -8 -8 -8 -8 -6 -6 -6 -6 -6 -6 -5 -5 -5 -5 -5 -5 -4 -4 -4 -4 -4 -4 -4 -4 -3 -3 -3 -2 -2 -2 -1 -1 ------------- Run | Yrd Mat Min Mat Min Exi Min Mat Gar Mat Sto Rec Fac Gar Fac Gar Fac Gar Fac Was Fac Gar Fac Gar Fac Was Fac Ext Cet Arc Hub Gar Res Tes Gar Res Qua Frg Acc Com Turns Passed 84553 | 88 1135 215 1662 866 417 346 512 1828 1054 535 4311 3228 1046 1521 1071 70 1184 1244 204 2118 1492 655 823 1122 254 3342 3934 285 1752 941 1004 4216 250 307 3316 3953 5347 4593 22312 Spaces Moved 39313 | 46 538 126 713 360 258 206 221 950 430 274 1557 1968 744 1301 615 65 775 594 78 659 548 460 370 388 74 1031 971 80 88 506 425 2312 211 262 2039 1941 3734 2142 9253 Core 7 | 4 . . . . . . . . . . 3 . . . . . . . . . . . . . . . . . . . . . . . . . . . . Treads 21412 | 42 538 126 713 360 258 206 221 950 274 62 817 1225 . 1198 217 . . 166 78 659 533 . 261 220 . 620 63 . 88 49 85 1067 . . 574 476 862 545 7859 Legs 11133 | . . . . . . . . . 156 212 219 178 . 83 241 65 775 216 . . . . . 127 74 123 763 80 . 457 84 1175 211 262 1465 1275 499 999 1394 Wheels 1476 | . . . . . . . . . . . 181 366 744 20 157 . . . . . . . . . . . . . . . . 8 . . . . . . . Hover 2309 | . . . . . . . . . . . . . . . . . . 212 . . 15 460 109 41 . 281 145 . . . 256 62 . . . . 728 . . Flight 2976 | . . . . . . . . . . . 337 199 . . . . . . . . . . . . . 7 . . . . . . . . . 190 1645 598 . Fastest Speed 35 | 50 160 160 160 160 160 160 160 160 126 126 35 35 103 95 95 105 105 105 246 246 104 95 95 222 298 215 107 107 107 107 114 72 72 72 72 73 40 40 115 Average Speed 150 | 150 160 160 162 217 160 160 160 160 147 133 139 113 103 95 120 105 105 186 246 265 212 97 180 261 298 262 192 107 107 118 175 120 72 72 137 144 82 124 185 Slowest Speed 700 | 160 160 160 240 240 160 160 160 160 160 160 700 207 103 103 205 105 105 314 246 274 309 104 243 298 298 323 323 107 107 194 284 205 72 72 279 259 188 206 465 Overloaded Moves . | . . . . . . . . . . . . . . . . . . . . . . . . . . . . . . . . . . . . . . . . Propulsion Burnouts . | . . . . . . . . . . . . . . . . . . . . . . . . . . . . . . . . . . . . . . . . Robots Hopped 1 | . . . . . . . . . . . . . . . . . . . . . . . . . . . . . . . . . . . . . 1 . . Potential Cave-ins 164 | . . . . . . . . . . . . 3 . . . . . . . . . . . . . . . . . . . . . . . . 17 . 144 Cave-ins Triggered 21 | . . . . . . . . . . . . 1 . . . . . . . . . . . . . . . . . . . . . . . . . . 20 Exploration Rate (%) 56 | 3 88 44 77 64 60 45 31 92 47 36 97 47 77 38 76 5 92 11 69 29 72 15 52 12 74 39 67 54 87 56 68 74 25 49 59 97 77 61 94 Regions Visited 39 Branch Regions 14 Pre-discovered Areas 12 | . 1 . 3 1 . . . . 1 . 6 . . . . . . . . . . . . . . . . . . . . . . . . . . . . Known Exits Taken 19 | . 1 1 1 . . 1 1 . 1 1 . 1 . 1 . 1 . . . 1 . 1 . . . 1 . . . 1 . . 1 . 1 1 1 1 . Unknown Exits Taken 8 | 1 . . . 1 1 . . . . . 1 . . . . . . . . . . . . . . . 1 1 1 . . 1 . . . . . . . Scrap Searched 3 | . . 1 . 1 . 1 . . . . . . . . . . . . . . . . . . . . . . . . . . . . . . . . . Spaces Dug 1439 | . . . . . . . . . . 4 . 40 3 . 6 1 . 7 . 30 . 4 . 4 . 11 4 . . 9 . 33 16 . 37 11 30 21 1168 Terrain Destroyed 8111 | . . . 37 34 . 52 46 16 3 24 38 77 92 25 37 1 109 12 . 165 26 53 6 49 . 59 74 1 5 20 17 135 44 40 288 151 1292 640 4443 Melee . | . . . . . . . . . . . . . . . . . . . . . . . . . . . . . . . . . . . . . . . . Projectile 3386 | . . . . . . . . . 3 5 13 60 22 . 20 1 38 12 . 79 26 33 6 19 . 46 74 1 5 20 17 106 22 28 221 108 137 100 2164 AOE 4725 | . . . 37 34 . 52 46 16 . 19 25 17 70 25 17 . 71 . . 86 . 20 . 30 . 13 . . . . . 29 22 12 67 43 1155 540 2279 Terrain Rammed . | . . . . . . . . . . . . . . . . . . . . . . . . . . . . . . . . . . . . . . . . Walls Destroyed . | . . . . . . . . . . . . . . . . . . . . . . . . . . . . . . . . . . . . . . . . Machines Disabled . | . . . . . . . . . . . . . . . . . . . . . . . . . . . . . . . . . . . . . . . . Actions | -11 -10 -10 -9 -9 -9 -8 -8 -8 -8 -8 -8 -6 -6 -6 -6 -6 -6 -5 -5 -5 -5 -5 -5 -4 -4 -4 -4 -4 -4 -4 -4 -3 -3 -3 -2 -2 -2 -1 -1 --------- Run | Yrd Mat Min Mat Min Exi Min Mat Gar Mat Sto Rec Fac Gar Fac Gar Fac Gar Fac Was Fac Gar Fac Gar Fac Was Fac Ext Cet Arc Hub Gar Res Tes Gar Res Qua Frg Acc Com Total 59740 | 60 682 133 999 412 265 217 330 1118 737 386 3477 2797 999 1548 913 66 1076 703 90 969 834 631 516 489 104 1610 2821 272 1725 795 643 3418 307 370 2514 3103 5542 3825 12244 Wait 12339 | . 64 . 104 15 . 3 68 59 226 47 1661 516 145 125 188 . 139 42 3 176 173 91 96 55 8 298 1414 180 1594 221 118 551 63 67 175 685 694 1038 1237 Move 39261 | 45 537 125 712 359 257 205 221 949 429 273 1556 1966 743 1300 614 65 774 594 77 658 547 460 369 388 73 1030 970 79 87 506 424 2311 210 261 2038 1940 3731 2141 9237 Hop 1 | . . . . . . . . . . . . . . . . . . . . . . . . . . . . . . . . . . . . . 1 . . Pick Up 523 | 7 7 1 8 1 3 1 1 5 5 5 11 47 7 12 8 . 4 5 1 16 13 7 9 4 . 19 12 2 5 1 5 40 4 7 31 21 51 26 111 Fast Attach 329 | 6 . 1 5 . . . 2 6 4 3 6 17 5 7 1 . 2 3 1 12 3 3 1 1 . 9 7 . . 1 6 29 3 5 10 13 54 19 84 Attach 226 | 1 3 1 6 2 . 2 3 4 4 1 8 5 . . . . 3 3 1 6 6 . . 4 3 5 2 . . 1 2 15 2 1 19 5 39 21 48 Detach 127 | . . . 3 3 . . 1 . 1 . 6 2 . 2 . . 2 1 1 3 3 . . 2 4 2 3 . . . 2 4 3 . 13 . 34 18 14 Swap 321 | . 1 1 21 2 . . 6 12 5 11 4 13 . 5 3 . 1 2 . 9 7 4 2 6 1 14 9 . 2 . . 27 1 8 13 23 33 13 62 Drop 738 | . 4 1 12 2 5 . 4 15 10 9 26 34 15 18 9 . 5 8 . 22 12 10 10 7 2 27 21 2 9 4 9 52 11 10 42 39 74 32 166 Fire 5584 | 1 66 3 121 25 . 5 24 68 53 36 190 195 59 78 78 1 136 45 6 64 56 55 27 22 13 205 289 9 28 60 50 372 7 11 172 374 820 498 1262 Melee 3 | . . . 1 . . . . . . 1 . . . . . . . . . . . . . . . . . . . . . . 1 . . . . . . Ram 4 | . . . . . . . . . . . . . . . . . . . . . . 1 . . . . . . . . . . . . . . 3 . . Kick 10 | . . . . . . . . . . . 3 . . . . . . . . . . . . . . . . . . 1 . 2 1 . . 3 . . . Crush 23 | . . . 3 3 . 1 . . . . 3 1 . 1 . . . . . 3 . . . . . 1 1 . . . . 3 . . 1 . 1 . 1 Escape Stasis 136 | . . . 3 . . . . . . . . 1 16 . 12 . 10 . . . . . 2 . . . 5 . . . 27 12 . . . . 7 19 22 Rewire 99 | . . . . . . . . . . . 3 . 9 . . . . . . . 14 . . . . . 72 . . . . . 1 . . . . . . Trap . | . . . . . . . . . . . . . . . . . . . . . . . . . . . . . . . . . . . . . . . . Miscellaneous 16 | . . . . . . . . . . . . . . . . . . . . . . . . . . . 16 . . . . . . . . . . . . Route ------- -11/Scrapyard -10/Materials (discovered 6 exits: *Mat x3 / *Min x2 / Sub) -10/Mines (discovered 3 exits: *Mat x2 / Sub) -9/Materials (discovered 4 exits: *Mat x2 / *Min x2) -9/Mines (discovered 3 exits: *Mat x2 / *Exi) -9/Exiles -8/Mines -8/Materials (discovered 5 exits: *Fac x3 / Sto / Gar) -8/Garrison (discovered 3 exits: *Mat x3) -8/Materials (discovered 4 exits: Fac x2 / *Sto x2) -8/Storage -8/Recycling -6/Factory (discovered 5 exits: *Fac x3 / *Low / Gar) -6/Garrison (discovered 3 exits: *Fac x3) -6/Factory (discovered 4 exits: *Fac x3 / Gar) -6/Garrison (discovered 4 exits: *Fac x3 / *Fac) -6/Factory -6/Garrison (discovered 3 exits: *Fac x3) -5/Factory -5/Waste -5/Factory -5/Garrison (discovered 2 exits: *Fac x2) -5/Factory (discovered 2 exits: Gar / Gar) -5/Garrison (discovered 3 exits: *Fac x3) -4/Factory -4/Waste -4/Factory (discovered 2 exits: *Res / *Ext) -4/Extension (discovered 3 exits: *Res x2 / [*Cet]) -4/Cetus -4/Archives (discovered 3 exits: Res / *Hub x2) -4/Hub_04(d) (discovered 3 exits: *Res x2 / Gar) -4/Garrison (discovered 2 exits: *Res x2) -3/Research (discovered 6 exits: *Res x3 / Arm / *Tes x2) -3/Testing -3/Garrison -2/Research (discovered 2 exits: *Acc / *Qua) -2/Quarantine (discovered 3 exits: *Acc / *Sec / *Frg) -2/Protoforge -1/Access (discovered 2 exits: *Sur / *Com) -1/Command (discovered 2 exits: *Sur x2) 0b11 Command History --------- Turn | Location | Event 5 | -11/Scrapyard | Discovered new exit (range 14) 89 | -11/Scrapyard | Entered Materials 241 | -10/Materials | Discovered new exit (range 4) 313 | -10/Materials | Build established: Mutant 444 | -10/Materials | Discovered new exit (range 10) 650 | -10/Materials | Discovered new exit (range 8) 693 | -10/Materials | Discovered new exit (range 16) 798 | -10/Materials | Learned location of 2 exits from Mines 879 | -10/Materials | Identified exit to Subcaves 879 | -10/Materials | Identified exit to Mines 938 | -10/Materials | Lost 3 parts (1p2w) 949 | -10/Materials | Learned 4 Subcaves zone layouts 1009 | -10/Materials | Learned 4 Recycling zone layouts 1093 | -10/Materials | Learned 4 Recycling zone layouts 1140 | -10/Materials | Identified exit to Materials 1140 | -10/Materials | Learned location of 1 exit from Materials 1168 | -10/Materials | Prayed at D.C.S.S. Altar Unit 1224 | -10/Materials | Entered Mines 1242 | -10/Mines | Core integrity fell below 50% 1311 | -10/Mines | Received a Mining Laser from a helpful Derelict 1384 | -10/Mines | Found a hidden stash of uninstalled traps 1402 | -10/Mines | Received a Rocket Launcher from a helpful Derelict 1404 | -10/Mines | X0-1V1 added 0b10 threat records associated with you (minor) 1439 | -10/Mines | Entered Materials 1439 | -9/Materials | Accompanied by 1 ally 1439 | -9/Materials | Evolved 2 slots: Propulsion x1, Utility x1 1440 | -9/Materials | Identified exit to Mines 1441 | -9/Materials | Identified exit to Materials 1740 | -9/Materials | Build established: Scavenger-Mutant 2071 | -9/Materials | X0-1V1 announced a LAN party 2095 | -9/Materials | Learned location of 2 exits from Materials 2241 | -9/Materials | Learned location of 3 exits from Materials 2298 | -9/Materials | Learned location of Storage (-8) 2344 | -9/Materials | Loaded intel: 5 trap records 2381 | -9/Materials | Learned Materials trap positions 2413 | -9/Materials | X0-1V1 sent allied B-36 Bruiser (x4) 2520 | -9/Materials | X0-1V1 activates XOMVISION 2552 | -9/Materials | Learned Storage security intel 2639 | -9/Materials | Utility slot count permanently improved by X0-1V1 (+1) 2666 | -9/Materials | X0-1V1 sent you to a vault 2674 | -9/Materials | X0-1V1 put everyone to sleep 2685 | -9/Materials | X0-1V1 foreshadows a heat wave 2699 | -9/Materials | X0-1V1 tapped a No Entrance sign 2714 | -9/Materials | X0-1V1 caused items to flee you 2731 | -9/Materials | X0-1V1 vaporized surrounding terrain (radius 21) 2750 | -9/Materials | X0-1V1 sent you into danger 2782 | -9/Materials | X0-1V1 sent allied S-10 Pest (x3) 2810 | -9/Materials | X0-1V1 sent hostile S-10 Pest (x4) 2818 | -9/Materials | System corruption reached 10% 2830 | -9/Materials | Lost 3 allies 2876 | -9/Materials | Ambient heat levels rising (+10) 2880 | -9/Materials | Core integrity restored by X0-1V1 (+100) 2891 | -9/Materials | Items stopped fleeing you 2891 | -9/Materials | X0-1V1 activates XOMVISION 2896 | -9/Materials | X0-1V1 sent you into danger 2913 | -9/Materials | X0-1V1 added 0b10 threat records associated with you (major) 2918 | -9/Materials | X0-1V1 vaporized surrounding terrain (radius 22) 2947 | -9/Materials | X0-1V1 sent hostile G-34 Mercenary (x3) 3012 | -9/Materials | X0-1V1 added 0b10 threat records associated with you (minor) 3039 | -9/Materials | First assault squad dispatched 3083 | -9/Materials | Ambient heat levels rising (+10) 3101 | -9/Materials | Entered Mines 3102 | -9/Mines | Assembled infested the area 3107 | -9/Mines | Assisted by a Guerilla fighting off Assembled 3159 | -9/Mines | Destroyed 9 combat bots 3279 | -9/Mines | Heat dissipation permanently improved by X0-1V1 (+30; -150 max core) 3494 | -9/Mines | Deemed a non-threat by the Exiles lab entrance 3494 | -9/Mines | Discovered new exit (range 5) 3599 | -9/Mines | Learned location of Zion (-7) 3680 | -9/Mines | Discovered exit to Materials (range 8) 3967 | -9/Mines | Entered Exiles 4011 | -9/Exiles | Met 8R-AWN 4035 | -9/Exiles | Met EX-HEX 4078 | -9/Exiles | Met EX-BIN 4097 | -9/Exiles | Aligned with FarCom system 4099 | -9/Exiles | Given EX-Vault access code 4137 | -9/Exiles | Opened EX-Vault 4149 | -9/Exiles | Found Firepult 4153 | -9/Exiles | Found YOLO Cannon 4158 | -9/Exiles | Found Longsword +1 4191 | -9/Exiles | Warned to stay clear of 0b10 Research branches 4237 | -9/Exiles | Met EX-DEC 4365 | -9/Exiles | Discovered new exit (range 14) 4384 | -9/Exiles | Stole three prototypes: Firepult, YOLO Cannon, Longsword +1 4384 | -9/Exiles | Entered Mines 4625 | -8/Mines | Discovered exit to Materials (range 6) 4730 | -8/Mines | Entered Materials 4730 | -8/Materials | Evolved 2 slots: Propulsion x1, Weapon x1 4731 | -8/Materials | Identified exit to Factory 4731 | -8/Materials | Identified exit to Storage 4732 | -8/Materials | Loaded intel: 24 trap records 4800 | -8/Materials | X0-1V1 added 0b10 threat records associated with you (considerable) 4869 | -8/Materials | X0-1V1 sent you to a vault 4951 | -8/Materials | Ranged accuracy permanently improved by X0-1V1 (+8%; -80 max core) 5011 | -8/Materials | X0-1V1 activates XOMVISION 5023 | -8/Materials | Repaired Hrd. Heavy Armor Plating 5106 | -8/Materials | Build established: Scavenger-Skirmisher 5130 | -8/Materials | First assault squad dispatched 5241 | -8/Materials | Identified exit to Garrison 5242 | -8/Materials | Entered Garrison 5242 | -8/Garrison | Accompanied by 2 allies 5264 | -8/Garrison | Triggered checkpoint 5418 | -8/Garrison | Triggered checkpoint 5454 | -8/Garrison | Triggered checkpoint 5477 | -8/Garrison | Identified exit to Materials 5477 | -8/Garrison | X0-1V1 revealed exit location to -8/Materials 5490 | -8/Garrison | Triggered checkpoint 5567 | -8/Garrison | X0-1V1 destroyed Phase Generator 5567 | -8/Garrison | Phase Generator disabled 5620 | -8/Garrison | X0-1V1 caused items to flee you 5726 | -8/Garrison | X0-1V1 revealed exit location to -8/Materials 5882 | -8/Garrison | Triggered checkpoint 5905 | -8/Garrison | Items stopped fleeing you 5964 | -8/Garrison | Triggered checkpoint 5985 | -8/Garrison | Discovered exit to Materials (range 12) 6108 | -8/Garrison | Spotted B-75 Beast 6141 | -8/Garrison | Destroyed B-75 Beast 6235 | -8/Garrison | Installed Relay Interface Framework 6468 | -8/Garrison | Triggered checkpoint 6521 | -8/Garrison | Garrison Relay disabled 6533 | -8/Garrison | Garrison Relay disabled 6570 | -8/Garrison | Discovered exit to Materials (range 77) 6570 | -8/Garrison | Discovered exit to Materials (range 28) 6570 | -8/Garrison | Discovered exit to Materials (range 54) 6809 | -8/Garrison | Garrison Relay disabled 6830 | -8/Garrison | Triggered checkpoint 6884 | -8/Garrison | X0-1V1 sent you into danger 7070 | -8/Garrison | Entered Materials 7124 | -8/Materials | Build established: Scavenger-Tank 7362 | -8/Materials | X0-1V1 caused items to flee you 7496 | -8/Materials | Build established: Scavenger-Skirmisher 7578 | -8/Materials | Items stopped fleeing you 7641 | -8/Materials | Discovered exit to Storage (range 15) 7719 | -8/Materials | Expanded RIF knowledge: Program Shield 7750 | -8/Materials | X0-1V1 vaporized surrounding terrain (radius 15) 7841 | -8/Materials | X0-1V1 sent you to a vault 7868 | -8/Materials | X0-1V1 revealed exit location to -7/Factory 7870 | -8/Materials | First assault squad dispatched 7933 | -8/Materials | X0-1V1 revealed exit location to -8/Storage 8124 | -8/Materials | Entered Storage 8125 | -8/Storage | Identified exit to Recycling 8126 | -8/Storage | FarCom data flow suspended 8264 | -8/Storage | Build established: Tank 8347 | -8/Storage | Core integrity restored by X0-1V1 (+86) 8524 | -8/Storage | First assault squad dispatched 8548 | -8/Storage | Used back door to open Recycling access 8585 | -8/Storage | System corruption reached 10% 8597 | -8/Storage | X0-1V1 downgraded hostiles (x1) 8659 | -8/Storage | Entered Recycling 8833 | -8/Recycling | Build established: Scavenger-Tank 9124 | -8/Recycling | Discovered new exit (range 19) 9153 | -8/Recycling | Core integrity fell below 50% 9293 | -8/Recycling | Identified exit to Scraptown 9293 | -8/Recycling | X0-1V1 revealed exit location to -8/Scraptown 9312 | -8/Recycling | Build established: Scavenger-Gunner 9665 | -8/Recycling | X0-1V1 sent hostile H-55 Commando (x3) 9684 | -8/Recycling | X0-1V1 whisked you away to safety 9711 | -8/Recycling | Lost 3 parts (2n1w) 10080 | -8/Recycling | Build established: Scavenger-Mutant 10082 | -8/Recycling | Scanned before Scraplab entrance 10097 | -8/Recycling | Angered Scraplab inhabitants 10183 | -8/Recycling | Found Prototype Device 10183 | -8/Recycling | Identified Scrap Engine 10281 | -8/Recycling | X0-1V1 activates XOMVISION 10620 | -8/Recycling | Build established: Mutant 10805 | -8/Recycling | X0-1V1 sent hostile G-47 Trooper (x5) 10852 | -8/Recycling | Destroyed 8 combat bots 11002 | -8/Recycling | X0-1V1 vaporized surrounding terrain (radius 23) 11301 | -8/Recycling | Core integrity restored by X0-1V1 (+57) 11432 | -8/Recycling | X0-1V1 activates XOMVISION 11434 | -8/Recycling | Build established: Construct 11727 | -8/Recycling | X0-1V1 sent hostile S-10 Pest (x3) 12597 | -8/Recycling | X0-1V1 activates XOMVISION 12708 | -8/Recycling | Core integrity restored by X0-1V1 (+51) 12742 | -8/Recycling | X0-1V1 activates XOMVISION 12895 | -8/Recycling | Core integrity restored by X0-1V1 (+51) 12970 | -8/Recycling | Entered Factory 12970 | -6/Factory | Evolved 4 slots: Utility x4 13053 | -6/Factory | X0-1V1 sent allied H-71 Marshal (x1) 13142 | -6/Factory | Identified exit to Lower Caves 13142 | -6/Factory | X0-1V1 revealed exit location to -6/Lower Caves 13154 | -6/Factory | X0-1V1 caused items to flee you 13274 | -6/Factory | Items stopped fleeing you 13320 | -6/Factory | Search patrols dispatched 13428 | -6/Factory | X0-1V1 activates XOMVISION 13463 | -6/Factory | X0-1V1 put everyone to sleep 13481 | -6/Factory | System corruption reached 10% 13528 | -6/Factory | X0-1V1 added 0b10 threat records associated with you (considerable) 13670 | -6/Factory | Search patrols dispatched 13673 | -6/Factory | Repaired Lrg. Storage Unit 13958 | -6/Factory | X0-1V1 woke everyone up 14020 | -6/Factory | Search patrols dispatched 14207 | -6/Factory | X0-1V1 activates XOMVISION 14585 | -6/Factory | Discovered new exit (range 11) 14820 | -6/Factory | Discovered new exit (range 15) 14843 | -6/Factory | Spotted B-75 Beast 14898 | -6/Factory | Identified exit to Factory 15059 | -6/Factory | X0-1V1 enhanced Transport squad support 15354 | -6/Factory | Destroyed 7 combat bots 15510 | -6/Factory | X0-1V1 announced a LAN party 15679 | -6/Factory | X0-1V1 activates XOMVISION 15713 | -6/Factory | Crushed by falling debris 15927 | -6/Factory | Discovered exit to Factory (range 14) 16034 | -6/Factory | X0-1V1 activates XOMVISION 16053 | -6/Factory | Identified exit to Garrison 16198 | -6/Factory | Entered Garrison 16260 | -6/Garrison | Triggered checkpoint 16285 | -6/Garrison | Identified exit to Factory 16285 | -6/Garrison | X0-1V1 revealed exit location to -6/Factory 16286 | -6/Garrison | Garrison Relay disabled 16448 | -6/Garrison | Triggered checkpoint 16448 | -6/Garrison | Triggered checkpoint 16542 | -6/Garrison | Triggered checkpoint 16625 | -6/Garrison | Discovered exit to Factory (range 12) 16687 | -6/Garrison | Phase Generator disabled 16720 | -6/Garrison | Rewired Striker 16822 | -6/Garrison | Triggered checkpoint 16836 | -6/Garrison | X0-1V1 caused items to flee you 16883 | -6/Garrison | Spotted B-75 Beast 16911 | -6/Garrison | Expanded RIF knowledge: Structural Interface 17034 | -6/Garrison | Items stopped fleeing you 17049 | -6/Garrison | X0-1V1 activates XOMVISION 17132 | -6/Garrison | Discovered exit to Factory (range 15) 17244 | -6/Garrison | Entered Factory 17244 | -6/Factory | Accompanied by 1 ally 17371 | -6/Factory | Core integrity fell below 50% 17573 | -6/Factory | X0-1V1 sent you into danger 17578 | -6/Factory | Weapon slot count temporarily expanded by X0-1V1 (+3) 17635 | -6/Factory | X0-1V1 sent you to a vault 17655 | -6/Factory | Spotted B-75 Beast 17661 | -6/Factory | Destroyed B-75 Beast 17822 | -6/Factory | Fabricated Nova Cannon (x2) 17913 | -6/Factory | X0-1V1 put everyone to sleep 17920 | -6/Factory | Weapon slot count reverted to normal (-3) 17980 | -6/Factory | X0-1V1 enhanced Transport squad support 18156 | -6/Factory | X0-1V1 revealed exit location to -5/Factory 18245 | -6/Factory | Discovered exit to Factory (range 6) 18261 | -6/Factory | X0-1V1 sent hostile Savage (x2) 18286 | -6/Factory | X0-1V1 revealed exit location to -5/Factory 18294 | -6/Factory | First assault squad dispatched 18368 | -6/Factory | Identified exit to Garrison 18400 | -6/Factory | X0-1V1 caused items to flee you 18476 | -6/Factory | X0-1V1 woke everyone up 18599 | -6/Factory | X0-1V1 sent hostile G-50 Soldier (x5) 18614 | -6/Factory | Items stopped fleeing you 18636 | -6/Factory | Core integrity restored by X0-1V1 (+142) 18668 | -6/Factory | X0-1V1 activates XOMVISION 18765 | -6/Factory | Entered Garrison 18805 | -6/Garrison | System corruption reached 30% 18816 | -6/Garrison | Core integrity restored by X0-1V1 (+130) 18886 | -6/Garrison | Triggered checkpoint 19060 | -6/Garrison | Spotted Striker 19061 | -6/Garrison | Discovered exit to Factory (range 12) 19067 | -6/Garrison | Destroyed Striker 19103 | -6/Garrison | Spotted B-75 Beast 19109 | -6/Garrison | Destroyed B-75 Beast 19192 | -6/Garrison | Triggered checkpoint 19206 | -6/Garrison | Triggered checkpoint 19213 | -6/Garrison | Triggered checkpoint 19287 | -6/Garrison | Identified exit to Factory 19287 | -6/Garrison | X0-1V1 revealed exit location to -6/Factory 19636 | -6/Garrison | Expanded RIF knowledge: Signal Jamming 19680 | -6/Garrison | Discovered exit to Factory (range 11) 19713 | -6/Garrison | X0-1V1 activates XOMVISION 19795 | -6/Garrison | Discovered exit to Factory (range 12) 19804 | -6/Garrison | Discovered exit to Factory (range 12) 19804 | -6/Garrison | Discovered exit to Factory (range 66) 19804 | -6/Garrison | Discovered exit to Factory (range 54) 19804 | -6/Garrison | Discovered exit to Factory (range 20) 19823 | -6/Garrison | Triggered checkpoint 19836 | -6/Garrison | Entered Factory 19856 | -6/Factory | X0-1V1 released a cloud of subatomizers 19906 | -6/Factory | Identified exit to Garrison 19906 | -6/Factory | Entered Garrison 20034 | -6/Garrison | Triggered checkpoint 20061 | -6/Garrison | Destroyed 13 combat bots 20083 | -6/Garrison | Heavy support dispatched to Factory 20108 | -6/Garrison | X0-1V1 caused items to flee you 20112 | -6/Garrison | Discovered exit to Factory (range 14) 20138 | -6/Garrison | Phase Generator disabled 20163 | -6/Garrison | H-XX Assembler disabled 20278 | -6/Garrison | Items stopped fleeing you 20280 | -6/Garrison | Weapon slot count temporarily expanded by X0-1V1 (+2) 20402 | -6/Garrison | Triggered checkpoint 20482 | -6/Garrison | X0-1V1 revealed exit location to -5/Factory 20572 | -6/Garrison | Discovered exit to Factory (range 9) 20598 | -6/Garrison | Expanded RIF knowledge: Autoassimilate 20654 | -6/Garrison | Triggered checkpoint 20746 | -6/Garrison | Triggered checkpoint 20761 | -6/Garrison | Weapon slot count reverted to normal (-2) 20893 | -6/Garrison | Destroyed 13 combat bots 20998 | -6/Garrison | Triggered checkpoint 21090 | -6/Garrison | Entered Factory 21090 | -5/Factory | Evolved 2 slots: Power x1, Weapon x1 21363 | -5/Factory | X0-1V1 vaporized surrounding terrain (radius 21) 21382 | -5/Factory | Discovered new exit (range 15) 21390 | -5/Factory | First assault squad dispatched 21427 | -5/Factory | X0-1V1 redirected Transport squads to designated parking area 21541 | -5/Factory | X0-1V1 upgraded hostiles (x1) 22151 | -5/Factory | X0-1V1 made a cryptic comment about sterilization and BL-4Z3 22294 | -5/Factory | Sterilization system engaged 22294 | -5/Factory | Non-combat units ordered to evacuate 22334 | -5/Factory | Manually triggered Chute Trap 22334 | -5/Factory | Sucked down chute 22334 | -5/Factory | Entered Waste 22349 | -5/Waste | EMP discharged 22349 | -5/Waste | System corruption reached 10% 22352 | -5/Waste | Spotted C-40 Crusher 22357 | -5/Waste | Spotted C-40 Crusher 22373 | -5/Waste | Spotted C-40 Crusher 22405 | -5/Waste | Spotted C-40 Crusher 22407 | -5/Waste | Spotted C-40 Crusher 22449 | -5/Waste | EMP discharged 22481 | -5/Waste | Spotted C-40 Crusher 22497 | -5/Waste | Discovered new exit (range 16) 22538 | -5/Waste | Entered Factory 22934 | -5/Factory | X0-1V1 sent you into danger 23622 | -5/Factory | System corruption reached 30% 23817 | -5/Factory | X0-1V1 activates XOMVISION 24038 | -5/Factory | First assault squad dispatched 24639 | -5/Factory | Identified exit to Garrison 24656 | -5/Factory | Entered Garrison 24673 | -5/Garrison | Sensors blinded by X0-1V1 24943 | -5/Garrison | Spotted B-75 Beast 24943 | -5/Garrison | X0-1V1 sent you into danger 24944 | -5/Garrison | Triggered checkpoint 24948 | -5/Garrison | Destroyed B-75 Beast 24948 | -5/Garrison | Triggered checkpoint 24990 | -5/Garrison | Triggered checkpoint 24990 | -5/Garrison | Destroyed 10 combat bots 24993 | -5/Garrison | Lost 3 parts (1p2u) 24993 | -5/Garrison | Triggered checkpoint 25222 | -5/Garrison | Found embedded Infiltrators 25256 | -5/Garrison | Expanded RIF knowledge: Hotswap 25270 | -5/Garrison | Discovered new exit (range 11) 25272 | -5/Garrison | Triggered checkpoint 25371 | -5/Garrison | X0-1V1 mutated your Weapon slot to Propulsion slot 25730 | -5/Garrison | X0-1V1 caused items to flee you 25731 | -5/Garrison | X0-1V1 activates XOMVISION 25847 | -5/Garrison | Core integrity restored by X0-1V1 (+161) 25865 | -5/Garrison | Build established: Scavenger-Construct 25936 | -5/Garrison | Discovered new exit (range 13) 25949 | -5/Garrison | Spotted Striker 25949 | -5/Garrison | Spotted Striker 25949 | -5/Garrison | X0-1V1 sent you into danger 25955 | -5/Garrison | Destroyed Striker 25965 | -5/Garrison | Destroyed Striker 25991 | -5/Garrison | Rewired Striker 26000 | -5/Garrison | Items stopped fleeing you 26148 | -5/Garrison | Entered Factory 26148 | -5/Factory | Accompanied by 2 allies 26263 | -5/Factory | Garrison activated, responded to threat 26308 | -5/Factory | Build established: Construct 26331 | -5/Factory | Identified exit to Garrison 26448 | -5/Factory | First assault squad dispatched 26455 | -5/Factory | X0-1V1 sent allied Knight (x1) 26488 | -5/Factory | Garrison activated, responded to threat 26532 | -5/Factory | X0-1V1 sent allied Butcher (x4) 26591 | -5/Factory | Lost 4 allies 26803 | -5/Factory | Identified exit to Garrison 26803 | -5/Factory | Entered Garrison 26803 | -5/Garrison | Spotted B-90 Cyclops 26807 | -5/Garrison | Destroyed B-90 Cyclops 26809 | -5/Garrison | Spotted B-90 Cyclops 26815 | -5/Garrison | Destroyed B-90 Cyclops 26836 | -5/Garrison | Destroyed 7 combat bots 26889 | -5/Garrison | X0-1V1 sent you into danger 27031 | -5/Garrison | Triggered checkpoint 27139 | -5/Garrison | Expanded RIF knowledge: Patrol Navigation 27212 | -5/Garrison | Discovered new exit (range 56) 27212 | -5/Garrison | Discovered new exit (range 14) 27212 | -5/Garrison | Discovered new exit (range 85) 27212 | -5/Garrison | Watched by a mysterious "MATRIX" hacker 27589 | -5/Garrison | Triggered checkpoint 27621 | -5/Garrison | X0-1V1 activates XOMVISION 27626 | -5/Garrison | Entered Factory 27626 | -4/Factory | Evolved 2 slots: Utility x1, Weapon x1 27876 | -4/Factory | First assault squad dispatched 28365 | -4/Factory | X0-1V1 activates XOMVISION 28635 | -4/Factory | System corruption reached 10% 28679 | -4/Factory | Discovered new exit (range 5) 28748 | -4/Factory | Sucked down chute 28748 | -4/Factory | Entered Waste 28749 | -4/Waste | Met a frightened Derelict 28763 | -4/Waste | EMP discharged 28791 | -4/Waste | X0-1V1 caused items to flee you 28806 | -4/Waste | Spotted C-40 Crusher 28810 | -4/Waste | Weapon slot count temporarily expanded by X0-1V1 (+2) 28822 | -4/Waste | Destroyed C-40 Crusher 28824 | -4/Waste | Destroyed C-40 Crusher 28825 | -4/Waste | Spotted C-40 Crusher 28832 | -4/Waste | Destroyed C-40 Crusher 28838 | -4/Waste | Destroyed C-40 Crusher 28863 | -4/Waste | EMP discharged 28870 | -4/Waste | Spotted C-40 Crusher 28885 | -4/Waste | Destroyed C-40 Crusher 28912 | -4/Waste | Destroyed C-40 Crusher 28963 | -4/Waste | EMP discharged 28963 | -4/Waste | System corruption reached 30% 28972 | -4/Waste | Discovered new exit (range 10) 29002 | -4/Waste | Entered Factory 29356 | -4/Factory | X0-1V1 added 0b10 threat records associated with you (considerable) 29476 | -4/Factory | X0-1V1 put everyone to sleep 29502 | -4/Factory | Search patrols dispatched 29610 | -4/Factory | X0-1V1 sent you to a vault 29752 | -4/Factory | Found Prototype Device 29753 | -4/Factory | Identified Exp. Transmission Jammer 29807 | -4/Factory | Found Prototype Device 29838 | -4/Factory | Weapon slot count reverted to normal (-2) 29916 | -4/Factory | Found Prototype Device 29945 | -4/Factory | Identified Adv. Kinecellerator 29948 | -4/Factory | Identified Exp. Thermal Defense Suite 30646 | -4/Factory | X0-1V1 woke everyone up 30855 | -4/Factory | X0-1V1 activates XOMVISION 30981 | -4/Factory | Spotted B-86 Titan 30988 | -4/Factory | Destroyed B-86 Titan 31252 | -4/Factory | First assault squad dispatched 31390 | -4/Factory | Discovered new exit (range 21) 31522 | -4/Factory | X0-1V1 activates XOMVISION 31677 | -4/Factory | Found Exp. Signal Interpreter 31808 | -4/Factory | X0-1V1 downgraded hostiles (x4) 31894 | -4/Factory | Weapon slot count temporarily expanded by X0-1V1 (+2) 32078 | -4/Factory | X0-1V1 whisked you away to safety 32181 | -4/Factory | Identified exit to Extension 32181 | -4/Factory | X0-1V1 revealed exit location to -4/Extension 32344 | -4/Factory | Entered Extension 32620 | -4/Extension | Rescued A7 32655 | -4/Extension | Rescued a captive Derelict 32704 | -4/Extension | Rescued a captive Derelict 32764 | -4/Extension | Weapon slot count reverted to normal (-2) 32820 | -4/Extension | Build established: Commander-Construct 32844 | -4/Extension | First assault squad dispatched 33232 | -4/Extension | X0-1V1 upgraded hostiles (x3) 33248 | -4/Extension | Energy Cycler disabled 33248 | -4/Extension | Allies destroyed A7 33248 | -4/Extension | Rescued a captive Derelict 33248 | -4/Extension | Rescued a captive Derelict 33249 | -4/Extension | Rescued a captive Derelict 33250 | -4/Extension | Rescued a captive Derelict 33253 | -4/Extension | Rescued a captive Derelict 33257 | -4/Extension | Rescued a captive Derelict 33259 | -4/Extension | Rescued a captive Derelict 33279 | -4/Extension | Lost 9 allies 33343 | -4/Extension | Destroyed 7 combat bots 33390 | -4/Extension | Core integrity restored by X0-1V1 (+211) 33533 | -4/Extension | Build established: Construct 33808 | -4/Extension | X0-1V1 activates XOMVISION 33825 | -4/Extension | Destroyed 8 combat bots 34104 | -4/Extension | Discovered new exit (range 17) 34104 | -4/Extension | Spotted B-86 Titan 34104 | -4/Extension | Spotted B-86 Titan 34104 | -4/Extension | X0-1V1 sent you into danger 34141 | -4/Extension | X0-1V1 activates XOMVISION 34183 | -4/Extension | X0-1V1 caused items to flee you 34305 | -4/Extension | Destroyed 12 combat bots 34343 | -4/Extension | Items stopped fleeing you 34434 | -4/Extension | X0-1V1 added 0b10 threat records associated with you (minor) 34757 | -4/Extension | Identified exit to Research 34757 | -4/Extension | X0-1V1 revealed exit location to -3/Research 35035 | -4/Extension | High security lockdown imminent 35115 | -4/Extension | High security lockdown engaged 35358 | -4/Extension | Destroyed 15 combat bots 35474 | -4/Extension | Destroyed 13 combat bots 35513 | -4/Extension | X0-1V1 announced a LAN party 35610 | -4/Extension | X0-1V1 whisked you away to safety 35619 | -4/Extension | Sterilization system engaged 35619 | -4/Extension | Non-combat units ordered to evacuate 35719 | -4/Extension | Combat units ordered to evacuate 35919 | -4/Extension | Ambient heat levels rising (+10) 36069 | -4/Extension | Ambient heat levels rising (+10) 36142 | -4/Extension | Found Prototype Device 36142 | -4/Extension | Identified Adv. EM Shield 36199 | -4/Extension | Discovered new exit (range 22) 36206 | -4/Extension | Build established: Scavenger-Construct 36219 | -4/Extension | Ambient heat levels rising (+10) 36278 | -4/Extension | Entered Cetus 36343 | -4/Cetus | X0-1V1 added 0b10 threat records associated with you (major) 36469 | -4/Cetus | Spotted Cetus Guard 36469 | -4/Cetus | High security lockdown imminent 36469 | -4/Cetus | Destroyed Cetus Guard 36470 | -4/Cetus | Spotted Cetus Guard 36473 | -4/Cetus | Spotted Cetus Guard 36473 | -4/Cetus | Destroyed Cetus Guard 36474 | -4/Cetus | Spotted Cetus Guard 36475 | -4/Cetus | Destroyed Cetus Guard 36482 | -4/Cetus | Destroyed Cetus Guard 36540 | -4/Cetus | Discovered new exit (range 21) 36549 | -4/Cetus | High security lockdown engaged 36563 | -4/Cetus | Entered Archives 37080 | -4/Archives | Discovered new exit (range 22) 37097 | -4/Archives | Discovered new exit (range 22) 37371 | -4/Archives | Build established: Construct 37425 | -4/Archives | X0-1V1 revealed exit location to -3/Research 38014 | -4/Archives | X0-1V1 vaporized surrounding terrain (radius 21) 38091 | -4/Archives | X0-1V1 sent hostile Thug (x3) 38315 | -4/Archives | Entered Hub_04(d) 38315 | -4/Hub_04(d) | Discovered exit to Research (range 10) 38398 | -4/Hub_04(d) | X0-1V1 added 0b10 threat records associated with you (considerable) 38614 | -4/Hub_04(d) | Discovered exit to Research (range 11) 38661 | -4/Hub_04(d) | X0-1V1 vaporized surrounding terrain (radius 21) 38995 | -4/Hub_04(d) | Identified exit to Garrison 39072 | -4/Hub_04(d) | X0-1V1 caused items to flee you 39105 | -4/Hub_04(d) | X0-1V1 added 0b10 threat records associated with you (considerable) 39225 | -4/Hub_04(d) | X0-1V1 activates XOMVISION 39256 | -4/Hub_04(d) | Entered Garrison 39264 | -4/Garrison | Expanded RIF knowledge: Alert ID Control 39330 | -4/Garrison | Triggered checkpoint 39360 | -4/Garrison | Garrison Relay disabled 39417 | -4/Garrison | Spotted B-86 Titan 39426 | -4/Garrison | Triggered checkpoint 39433 | -4/Garrison | X0-1V1 destroyed Phase Generator 39433 | -4/Garrison | Phase Generator disabled 39440 | -4/Garrison | Destroyed B-86 Titan 39498 | -4/Garrison | Triggered checkpoint 39507 | -4/Garrison | Triggered checkpoint 39540 | -4/Garrison | Destroyed 14 combat bots 39719 | -4/Garrison | Found Hvy. Reflective Plating 39740 | -4/Garrison | Build established: Scavenger-Construct 39834 | -4/Garrison | Triggered checkpoint 39862 | -4/Garrison | Garrison Relay disabled 39933 | -4/Garrison | Discovered exit to Research (range 19) 40160 | -4/Garrison | Discovered exit to Research (range 10) 40186 | -4/Garrison | Triggered checkpoint 40260 | -4/Garrison | Entered Research 40260 | -3/Research | Evolved 2 slots: Utility x2 40457 | -3/Research | Discovered new exit (range 6) 40466 | -3/Research | Identified exit to Research 40760 | -3/Research | First assault squad dispatched 40788 | -3/Research | Spotted B-86 Titan 40788 | -3/Research | Destroyed B-86 Titan 40971 | -3/Research | Discovered exit to Research (range 12) 41025 | -3/Research | X0-1V1 sent hostile X-77 Beamer (x3) 41082 | -3/Research | X0-1V1 vaporized surrounding terrain (radius 23) 41118 | -3/Research | Identified exit to Armory 41118 | -3/Research | X0-1V1 revealed exit location to -3/Armory 41339 | -3/Research | Build established: Construct 41437 | -3/Research | X0-1V1 sent you into danger 41558 | -3/Research | Destroyed 12 combat bots 41668 | -3/Research | X0-1V1 whisked you away to safety 42175 | -3/Research | Found Prototype Device 42175 | -3/Research | Identified System Purifier 42183 | -3/Research | Found System Purifier 42356 | -3/Research | High security lockdown imminent 42396 | -3/Research | Destroyed 7 combat bots 42436 | -3/Research | High security lockdown engaged 42503 | -3/Research | Destroyed 14 combat bots 42511 | -3/Research | Spotted Striker 42512 | -3/Research | System corruption reached 10% 42527 | -3/Research | Destroyed Striker 42564 | -3/Research | Destroyed 8 combat bots 42574 | -3/Research | X0-1V1 announced a LAN party 42703 | -3/Research | Spotted Investigator 42706 | -3/Research | Scanned by Researcher 42733 | -3/Research | X0-1V1 upgraded hostiles (x1) 42764 | -3/Research | Spotted Executioner 42801 | -3/Research | Destroyed Executioner 42820 | -3/Research | Spotted Striker 42822 | -3/Research | Destroyed Striker 42850 | -3/Research | Found Prototype Launcher 42889 | -3/Research | Found Prototype Processor 42889 | -3/Research | Identified Exp. Core Analyzer 42904 | -3/Research | Destroyed 16 combat bots 42934 | -3/Research | X0-1V1 activates XOMVISION 42998 | -3/Research | X0-1V1 added 0b10 threat records associated with you (minor) 43075 | -3/Research | Destroyed 14 combat bots 43097 | -3/Research | X0-1V1 turns hostiles against one another 43138 | -3/Research | Spotted Executioner 43139 | -3/Research | Build established: Scavenger-Construct 43142 | -3/Research | Destroyed 7 combat bots 43165 | -3/Research | Weapon slot count temporarily expanded by X0-1V1 (+2) 43190 | -3/Research | System corruption reached 30% 43191 | -3/Research | X0-1V1 downgraded hostiles (x5) 43194 | -3/Research | Sterilization system engaged 43194 | -3/Research | Non-combat units ordered to evacuate 43205 | -3/Research | Destroyed Executioner 43206 | -3/Research | Spotted Investigator 43211 | -3/Research | Destroyed Investigator 43213 | -3/Research | Spotted Executioner 43222 | -3/Research | Destroyed Executioner 43222 | -3/Research | Spotted Executioner 43232 | -3/Research | Destroyed Executioner 43235 | -3/Research | X0-1V1 sent allied Lightning (x1) 43235 | -3/Research | Lost 7 parts (2p1n3u1w) 43239 | -3/Research | Spotted Executioner 43240 | -3/Research | Destroyed Lightning 43244 | -3/Research | Destroyed Executioner 43252 | -3/Research | X0-1V1 downgraded hostiles (x6) 43261 | -3/Research | Spotted Investigator 43268 | -3/Research | Destroyed Investigator 43287 | -3/Research | Destroyed Executioner 43294 | -3/Research | Combat units ordered to evacuate 43308 | -3/Research | Destroyed 47 combat bots 43313 | -3/Research | X0-1V1 upgraded hostiles (x1) 43329 | -3/Research | X0-1V1 sent hostile Guerrilla (x1) 43449 | -3/Research | Weapon slot count reverted to normal (-2) 43468 | -3/Research | Discovered exit to Research (range 6) 43477 | -3/Research | Discovered new exit (range 10) 43494 | -3/Research | Ambient heat levels rising (+10) 43644 | -3/Research | Ambient heat levels rising (+10) 43794 | -3/Research | Ambient heat levels rising (+10) 43832 | -3/Research | Identified Containment Facilitator 43848 | -3/Research | X0-1V1 sent hostile X-82 Rainmaker (x3) 43944 | -3/Research | Ambient heat levels rising (+10) 44094 | -3/Research | Ambient heat levels rising (+10) 44128 | -3/Research | Found Quantum Capacitor 44244 | -3/Research | Ambient heat levels rising (+10) 44273 | -3/Research | Discovered new exit (range 5) 44394 | -3/Research | Ambient heat levels rising (+10) 44476 | -3/Research | Entered Testing 44486 | -3/Testing | Found Hvy. Regenerative Plating 44596 | -3/Testing | X0-1V1 announced a LAN party 44605 | -3/Testing | X0-1V1 sent hostile P-80 Master (x3) 44606 | -3/Testing | Core integrity fell below 50% 44715 | -3/Testing | Identified exit to Garrison 44726 | -3/Testing | First assault squad dispatched 44726 | -3/Testing | Entered Garrison 44739 | -3/Garrison | X0-1V1 sent hostile X-77 Beamer (x3) 44752 | -3/Garrison | Triggered checkpoint 44922 | -3/Garrison | Spotted B-86 Titan 44940 | -3/Garrison | Destroyed B-86 Titan 44944 | -3/Garrison | Triggered checkpoint 44944 | -3/Garrison | Triggered checkpoint 44996 | -3/Garrison | Build established: Construct 45005 | -3/Garrison | Expanded RIF knowledge: Zone Cloak 45016 | -3/Garrison | X0-1V1 caused items to flee you 45022 | -3/Garrison | Discovered exit to Research (range 10) 45033 | -3/Garrison | Entered Research 45033 | -2/Research | Evolved 2 slots: Utility x2 45332 | -2/Research | Build established: Scavenger-Construct 45432 | -2/Research | X0-1V1 sent hostile P-80 Master (x2) 45479 | -2/Research | X0-1V1 sent you to a vault 45492 | -2/Research | X0-1V1 sent you into danger 45533 | -2/Research | First assault squad dispatched 45542 | -2/Research | High security lockdown imminent 45568 | -2/Research | X0-1V1 added 0b10 threat records associated with you (minor) 45597 | -2/Research | Discovered new exit (range 21) 45622 | -2/Research | High security lockdown engaged 45836 | -2/Research | Spotted Investigator 45848 | -2/Research | Weapon slot count temporarily expanded by X0-1V1 (+1) 45855 | -2/Research | Destroyed Investigator 45932 | -2/Research | Destroyed 34 combat bots 45960 | -2/Research | Destroyed Striker 45981 | -2/Research | Spotted Executioner 45986 | -2/Research | Destroyed Executioner 45994 | -2/Research | Spotted Striker 45996 | -2/Research | Destroyed Striker 46017 | -2/Research | Destroyed 12 combat bots 46051 | -2/Research | Spotted Striker 46052 | -2/Research | Spotted Executioner 46053 | -2/Research | Destroyed Striker 46055 | -2/Research | Destroyed Executioner 46065 | -2/Research | Spotted Striker 46069 | -2/Research | Destroyed Striker 46108 | -2/Research | Destroyed 18 combat bots 46164 | -2/Research | Spotted Striker 46168 | -2/Research | Destroyed Striker 46168 | -2/Research | Destroyed Striker 46190 | -2/Research | Build established: Construct 46193 | -2/Research | Destroyed 17 combat bots 46241 | -2/Research | Destroyed Striker 46241 | -2/Research | Spotted Investigator 46241 | -2/Research | Destroyed Investigator 46270 | -2/Research | Spotted Executioner 46275 | -2/Research | Destroyed Executioner 46282 | -2/Research | Sterilization system engaged 46282 | -2/Research | Non-combat units ordered to evacuate 46296 | -2/Research | Destroyed 21 combat bots 46307 | -2/Research | Found Exp. Core Analyzer 46310 | -2/Research | Found Exp. Core Analyzer 46336 | -2/Research | X0-1V1 announced a LAN party 46382 | -2/Research | Combat units ordered to evacuate 46446 | -2/Research | Weapon slot count reverted to normal (-1) 46582 | -2/Research | Ambient heat levels rising (+10) 46604 | -2/Research | Found Prototype Processor 46732 | -2/Research | Ambient heat levels rising (+10) 46850 | -2/Research | Identified Exp. Signal Interpreter 46882 | -2/Research | Ambient heat levels rising (+10) 47032 | -2/Research | Ambient heat levels rising (+10) 47182 | -2/Research | Ambient heat levels rising (+10) 47332 | -2/Research | Ambient heat levels rising (+10) 47482 | -2/Research | Ambient heat levels rising (+10) 47632 | -2/Research | Ambient heat levels rising (+10) 47782 | -2/Research | Ambient heat levels rising (+10) 47858 | -2/Research | Found Prototype Device 47881 | -2/Research | Identified Exp. Shield Generator 47932 | -2/Research | Ambient heat levels rising (+10) 48026 | -2/Research | Identified exit to Access 48082 | -2/Research | Ambient heat levels rising (+10) 48232 | -2/Research | Ambient heat levels rising (+10) 48329 | -2/Research | X0-1V1 caused items to flee you 48343 | -2/Research | Discovered new exit (range 6) 48347 | -2/Research | Identified exit to Quarantine 48349 | -2/Research | Entered Quarantine 48487 | -2/Quarantine | Found Alien Artifact 48572 | -2/Quarantine | Found Alien Slashing Weapon 48599 | -2/Quarantine | First assault squad dispatched 48659 | -2/Quarantine | Found Prototype Processor 48661 | -2/Quarantine | Identified Spectral Analyzer 48717 | -2/Quarantine | Found Alien Artifact 48882 | -2/Quarantine | Destroyed 7 combat bots 49019 | -2/Quarantine | Found Alien Energy Cannon 49032 | -2/Quarantine | X0-1V1 activates XOMVISION 49078 | -2/Quarantine | Discovered exit to Access (range 20) 49085 | -2/Quarantine | Found Sigix Corpse 49118 | -2/Quarantine | High security lockdown imminent 49124 | -2/Quarantine | Lost 3 allies 49183 | -2/Quarantine | Destroyed 24 combat bots 49198 | -2/Quarantine | High security lockdown engaged 49301 | -2/Quarantine | Destroyed 17 combat bots 49309 | -2/Quarantine | Spotted Striker 49314 | -2/Quarantine | System corruption reached 10% 49320 | -2/Quarantine | Destroyed Striker 49359 | -2/Quarantine | Spotted Executioner 49363 | -2/Quarantine | Destroyed Executioner 49368 | -2/Quarantine | Spotted Striker 49425 | -2/Quarantine | Destroyed 21 combat bots 49448 | -2/Quarantine | Destroyed Striker 49478 | -2/Quarantine | Identified exit to Section 7 49478 | -2/Quarantine | X0-1V1 revealed exit location to -2/Section 7 49570 | -2/Quarantine | Spotted Striker 49570 | -2/Quarantine | Spotted Striker 49591 | -2/Quarantine | Spotted Striker 49591 | -2/Quarantine | Destroyed Striker 49597 | -2/Quarantine | Destroyed Striker 49608 | -2/Quarantine | Destroyed Striker 49637 | -2/Quarantine | Destroyed 26 combat bots 49688 | -2/Quarantine | X0-1V1 whisked you away to safety 49761 | -2/Quarantine | Build established: Scavenger-Construct 49805 | -2/Quarantine | Spotted Striker 49838 | -2/Quarantine | Destroyed 7 combat bots 49883 | -2/Quarantine | Sterilization system engaged 49883 | -2/Quarantine | Non-combat units ordered to evacuate 49884 | -2/Quarantine | Spotted Striker 49884 | -2/Quarantine | Spotted Executioner 49890 | -2/Quarantine | X0-1V1 sent you to a vault 49910 | -2/Quarantine | Destroyed 17 combat bots 49982 | -2/Quarantine | Coolant Network reconfigured into Item Mimic 49983 | -2/Quarantine | Combat units ordered to evacuate 50163 | -2/Quarantine | Identified exit to Protoforge 50163 | -2/Quarantine | X0-1V1 revealed exit location to -2/Protoforge 50183 | -2/Quarantine | Ambient heat levels rising (+10) 50190 | -2/Quarantine | Build established: Commander-Construct 50196 | -2/Quarantine | X0-1V1 activates XOMVISION 50333 | -2/Quarantine | Ambient heat levels rising (+10) 50392 | -2/Quarantine | Found Alien Artifact 50392 | -2/Quarantine | Identified Phase Redirector 50483 | -2/Quarantine | Ambient heat levels rising (+10) 50525 | -2/Quarantine | Found Alien Launcher 50633 | -2/Quarantine | Ambient heat levels rising (+10) 50758 | -2/Quarantine | Found Sigix Corpse 50783 | -2/Quarantine | Ambient heat levels rising (+10) 50933 | -2/Quarantine | Ambient heat levels rising (+10) 51083 | -2/Quarantine | Ambient heat levels rising (+10) 51233 | -2/Quarantine | Ambient heat levels rising (+10) 51383 | -2/Quarantine | Ambient heat levels rising (+10) 51533 | -2/Quarantine | Ambient heat levels rising (+10) 51615 | -2/Quarantine | Spotted Fortress 51661 | -2/Quarantine | Found Prototype Device 51661 | -2/Quarantine | Identified Exp. EM Shield 51669 | -2/Quarantine | Lost 5 allies 51683 | -2/Quarantine | Ambient heat levels rising (+10) 51833 | -2/Quarantine | Ambient heat levels rising (+10) 51911 | -2/Quarantine | Build established: Scavenger-Construct 51983 | -2/Quarantine | Ambient heat levels rising (+10) 52088 | -2/Quarantine | X0-1V1 activates XOMVISION 52133 | -2/Quarantine | Ambient heat levels rising (+10) 52283 | -2/Quarantine | Ambient heat levels rising (+10) 52302 | -2/Quarantine | Entered Protoforge 52347 | -2/Protoforge | X0-1V1 revealed exit location to -1/Access 52388 | -2/Protoforge | Superfortress began startup sequence 52494 | -2/Protoforge | X0-1V1 vaporized surrounding terrain (radius 16) 52552 | -2/Protoforge | First assault squad dispatched 52625 | -2/Protoforge | Build established: Construct 52669 | -2/Protoforge | Spotted Overlord 52686 | -2/Protoforge | Core integrity fell below 50% 52741 | -2/Protoforge | Spotted Hotshot 52757 | -2/Protoforge | Spotted Hotshot 52760 | -2/Protoforge | Spotted Hotshot 52761 | -2/Protoforge | Destroyed Hotshot 52761 | -2/Protoforge | Spotted Hotshot 52763 | -2/Protoforge | Destroyed Hotshot 52765 | -2/Protoforge | Destroyed Hotshot 52766 | -2/Protoforge | Destroyed Hotshot 52771 | -2/Protoforge | Spotted Hotshot 52782 | -2/Protoforge | Destroyed Hotshot 52803 | -2/Protoforge | Destroyed 18 combat bots 52898 | -2/Protoforge | X0-1V1 activates XOMVISION 53067 | -2/Protoforge | Destroyed 7 combat bots 53149 | -2/Protoforge | Destroyed 11 combat bots 53165 | -2/Protoforge | Core integrity restored by X0-1V1 (+256) 53184 | -2/Protoforge | Identified Terrabomb 53184 | -2/Protoforge | Used Terrabomb 53184 | -2/Protoforge | Additional patrols dispatched to research labs 53232 | -2/Protoforge | Found Prototype Device 53232 | -2/Protoforge | Identified Crosscalibrator 53269 | -2/Protoforge | Core integrity restored by X0-1V1 (+305) 53320 | -2/Protoforge | X0-1V1 downgraded hostiles (x4) 53372 | -2/Protoforge | Destroyed 8 combat bots 53427 | -2/Protoforge | Spotted Immortal 53427 | -2/Protoforge | Spotted Immortal 53446 | -2/Protoforge | Spotted Decapitator 53446 | -2/Protoforge | Spotted Decapitator 53460 | -2/Protoforge | Destroyed Decapitator 53463 | -2/Protoforge | Destroyed Decapitator 53536 | -2/Protoforge | Found Cep. Networked Targeting System 53539 | -2/Protoforge | Found Exp. Kinecellerator 53542 | -2/Protoforge | Found Prototype Device 53542 | -2/Protoforge | Identified Cep. Weapon Articulator 53548 | -2/Protoforge | X0-1V1 added 0b10 threat records associated with you (considerable) 53554 | -2/Protoforge | Found Adv. Particle Accelerator 53568 | -2/Protoforge | Found Prototype Device 53568 | -2/Protoforge | Identified Femtoactuators 53579 | -2/Protoforge | Found Cep. Networked Targeting System 53621 | -2/Protoforge | Destroyed Immortal 53625 | -2/Protoforge | Destroyed Immortal 53633 | -2/Protoforge | Found Prototype Device 53633 | -2/Protoforge | Identified Exp. Cloaking Device 53818 | -2/Protoforge | X0-1V1 downgraded hostiles (x6) 53826 | -2/Protoforge | Destroyed 8 combat bots 53861 | -2/Protoforge | X0-1V1 caused items to flee you 53877 | -2/Protoforge | Spotted Decapitator 53877 | -2/Protoforge | Spotted Decapitator 53877 | -2/Protoforge | Spotted Decapitator 53878 | -2/Protoforge | Spotted V094-o 53887 | -2/Protoforge | Destroyed Decapitator 53889 | -2/Protoforge | Destroyed Decapitator 53894 | -2/Protoforge | Destroyed Decapitator 53915 | -2/Protoforge | Destroyed 12 combat bots 53973 | -2/Protoforge | X0-1V1 activates XOMVISION 54032 | -2/Protoforge | Items stopped fleeing you 54052 | -2/Protoforge | Found Prototype Device 54052 | -2/Protoforge | Identified Exp. EM Disruption Field 54069 | -2/Protoforge | Found Cep. Energy Mantle 54115 | -2/Protoforge | X0-1V1 added 0b10 threat records associated with you (considerable) 54130 | -2/Protoforge | Spotted Decapitator 54130 | -2/Protoforge | Spotted Decapitator 54142 | -2/Protoforge | Destroyed Decapitator 54148 | -2/Protoforge | Destroyed Decapitator 54226 | -2/Protoforge | Found Cep. NT7 Matterbank 54231 | -2/Protoforge | Found Cep. Matter Streamer 54241 | -2/Protoforge | Spotted V185-e 54247 | -2/Protoforge | Found Prototype Storage 54282 | -2/Protoforge | Found Cep. Chromion Battery 54309 | -2/Protoforge | X0-1V1 added 0b10 threat records associated with you (considerable) 54468 | -2/Protoforge | Destroyed 12 combat bots 54526 | -2/Protoforge | Lost 3 parts (2u1w) 54551 | -2/Protoforge | Identified Cep. Antigrav Storage Unit 54568 | -2/Protoforge | Destroyed 17 combat bots 54622 | -2/Protoforge | Destroyed 12 combat bots 54669 | -2/Protoforge | Spotted V086-b 54670 | -2/Protoforge | Spotted V346-q 54674 | -2/Protoforge | Spotted V982-i 54675 | -2/Protoforge | Destroyed V346-q 54677 | -2/Protoforge | Destroyed V086-b 54696 | -2/Protoforge | Destroyed V982-i 54732 | -2/Protoforge | Found Exp. Core Analyzer 54742 | -2/Protoforge | Destroyed 9 combat bots 54745 | -2/Protoforge | Found Prototype Processor 54745 | -2/Protoforge | Identified Exp. Targeting Computer 54748 | -2/Protoforge | Found Prototype Processor 54748 | -2/Protoforge | Identified Exp. Armor Integrity Analyzer 54758 | -2/Protoforge | Found Spectral Analyzer 54786 | -2/Protoforge | Spotted Immortal 54795 | -2/Protoforge | Destroyed Immortal 54803 | -2/Protoforge | Spotted V809-p 54816 | -2/Protoforge | Destroyed 10 combat bots 54818 | -2/Protoforge | Found Prototype Energy Cannon 54818 | -2/Protoforge | Identified Cep. Plasma Driver 54837 | -2/Protoforge | Found Prototype Ballistic Cannon 54837 | -2/Protoforge | Identified Cep. Helical Railcannon 54859 | -2/Protoforge | Found Cep. Helical Railcannon 54867 | -2/Protoforge | Found Cep. XC Strikerail 54996 | -2/Protoforge | Found Cep. XC Strikerail 55031 | -2/Protoforge | Found Faulty Cep. XC Strikerail 55034 | -2/Protoforge | Found Faulty Cep. Disintegration Ray 55036 | -2/Protoforge | Found Faulty Cep. Disintegration Ray 55186 | -2/Protoforge | Spotted AP7-3 55186 | -2/Protoforge | Spotted AP7-3 55194 | -2/Protoforge | Destroyed AP7-3 55195 | -2/Protoforge | Build established: Scavenger-Construct 55198 | -2/Protoforge | Destroyed AP7-3 55223 | -2/Protoforge | Found Prototype Energy Gun 55223 | -2/Protoforge | Identified Enh. Gamma Rifle 55230 | -2/Protoforge | Found Prototype Device 55230 | -2/Protoforge | Identified Exp. ECM Suite 55233 | -2/Protoforge | Found Cep. XC Strikerail 55238 | -2/Protoforge | Found Cep. XC Strikerail 55241 | -2/Protoforge | Found Prototype Processor 55241 | -2/Protoforge | Identified Exp. Target Analyzer 55262 | -2/Protoforge | Found Prototype Device 55262 | -2/Protoforge | Identified Cep. Cloak Mesh 55266 | -2/Protoforge | Found Prototype Device 55266 | -2/Protoforge | Identified Cep. Thermoelectric Network 55273 | -2/Protoforge | Found Cep. Impact Drone Bay 55281 | -2/Protoforge | System corruption reached 30% 55285 | -2/Protoforge | Found Cep. Cloak Mesh 55290 | -2/Protoforge | Found Faulty Cep. Cloak Mesh 55296 | -2/Protoforge | Found Prototype Energy Cannon 55303 | -2/Protoforge | Found Prototype Energy Cannon 55509 | -2/Protoforge | Destroyed 9 combat bots 55531 | -2/Protoforge | Found Transdimensional Reconstructor 55551 | -2/Protoforge | Build established: Construct 55666 | -2/Protoforge | Destroyed 10 combat bots 55982 | -2/Protoforge | Destroyed 16 combat bots 56016 | -2/Protoforge | Spotted V420-s 56016 | -2/Protoforge | Spotted V219-y 56028 | -2/Protoforge | Destroyed V420-s 56034 | -2/Protoforge | Destroyed V219-y 56051 | -2/Protoforge | Spotted V002-q 56061 | -2/Protoforge | Destroyed V002-q 56067 | -2/Protoforge | Found Prototype Launcher 56067 | -2/Protoforge | Identified Cep. Rapid Grenade Launcher 56070 | -2/Protoforge | Found Cep. Smart ZDS 56083 | -2/Protoforge | Found Cep. Tactical Fusion Warhead 56101 | -2/Protoforge | Found Prototype Launcher 56101 | -2/Protoforge | Identified Cep. Arcsight Missile Launcher 56197 | -2/Protoforge | Destroyed 16 combat bots 56253 | -2/Protoforge | X0-1V1 sent hostile H-88 Terminator (x3) 56268 | -2/Protoforge | Destroyed V185-e 56300 | -2/Protoforge | Destroyed 8 combat bots 56321 | -2/Protoforge | Spotted V361-y 56321 | -2/Protoforge | Spotted V759-r 56322 | -2/Protoforge | Spotted V834-j 56332 | -2/Protoforge | Destroyed V759-r 56335 | -2/Protoforge | Destroyed V361-y 56359 | -2/Protoforge | Destroyed V834-j 56369 | -2/Protoforge | Found Prototype Device 56369 | -2/Protoforge | Identified Exp. Shield Generator 56376 | -2/Protoforge | Found Prototype Device 56376 | -2/Protoforge | Identified Exp. Weapon Cycler 56390 | -2/Protoforge | Found Cep. Antimissile System 56392 | -2/Protoforge | Found Prototype Launcher 56392 | -2/Protoforge | Identified Hellfire Missile Launcher 56402 | -2/Protoforge | Found Cep. Network Penetrator 56420 | -2/Protoforge | X0-1V1 vaporized surrounding terrain (radius 23) 56461 | -2/Protoforge | Destroyed 26 combat bots 56484 | -2/Protoforge | Destroyed V809-p 56607 | -2/Protoforge | Found Exp. Kinecellerator 56665 | -2/Protoforge | Build established: Scavenger-Construct 56668 | -2/Protoforge | Identified Subatomic Replicator 56668 | -2/Protoforge | Used Subatomic Replicator to replicate Cep. Tactical Fusion Warhead 56680 | -2/Protoforge | High security lockdown imminent 56723 | -2/Protoforge | Destroyed 20 combat bots 56750 | -2/Protoforge | Found Prototype Protection 56750 | -2/Protoforge | Identified Cep. Core Shell 56760 | -2/Protoforge | High security lockdown engaged 56776 | -2/Protoforge | Spotted AP7-3 56777 | -2/Protoforge | Spotted AP7-3 56784 | -2/Protoforge | Destroyed AP7-3 56788 | -2/Protoforge | Destroyed AP7-3 56801 | -2/Protoforge | Found Enh. Gamma Rifle 56841 | -2/Protoforge | X0-1V1 mutated your Utility slot to Weapon slot 56860 | -2/Protoforge | Spotted B-90 Cyclops 56871 | -2/Protoforge | Destroyed 21 combat bots 56883 | -2/Protoforge | Destroyed B-90 Cyclops 56950 | -2/Protoforge | Spotted Investigator 56950 | -2/Protoforge | Destroyed Investigator 57007 | -2/Protoforge | Spotted Hotshot 57029 | -2/Protoforge | Destroyed 21 combat bots 57042 | -2/Protoforge | X0-1V1 sent you to a vault 57061 | -2/Protoforge | Destroyed Overlord 57104 | -2/Protoforge | Spotted Immortal 57105 | -2/Protoforge | Spotted Immortal 57108 | -2/Protoforge | Spotted Immortal 57112 | -2/Protoforge | Destroyed Immortal 57125 | -2/Protoforge | Destroyed Immortal 57129 | -2/Protoforge | Destroyed Immortal 57167 | -2/Protoforge | Destroyed 37 combat bots 57199 | -2/Protoforge | Spotted EXE-6 57201 | -2/Protoforge | Spotted EXE-6 57204 | -2/Protoforge | Destroyed EXE-6 57205 | -2/Protoforge | Destroyed EXE-6 57208 | -2/Protoforge | Spotted Decapitator 57210 | -2/Protoforge | Spotted Decapitator 57214 | -2/Protoforge | Destroyed Decapitator 57230 | -2/Protoforge | Destroyed Decapitator 57244 | -2/Protoforge | Spotted EXE-6 57244 | -2/Protoforge | Spotted EXE-6 57249 | -2/Protoforge | Core integrity fell below 20% 57249 | -2/Protoforge | Destroyed EXE-6 57250 | -2/Protoforge | Destroyed EXE-6 57258 | -2/Protoforge | Found Cep. XC Strikerail 57319 | -2/Protoforge | Spotted Executioner 57326 | -2/Protoforge | P-80 Master assimilated allied Warden 9c 57333 | -2/Protoforge | Spotted Striker 57334 | -2/Protoforge | Spotted Striker 57335 | -2/Protoforge | Spotted Executioner 57336 | -2/Protoforge | Destroyed Striker 57336 | -2/Protoforge | Destroyed Executioner 57336 | -2/Protoforge | Destroyed Striker 57340 | -2/Protoforge | Destroyed Striker 57345 | -2/Protoforge | Destroyed Executioner 57375 | -2/Protoforge | X0-1V1 activates XOMVISION 57402 | -2/Protoforge | Spotted Hotshot 57406 | -2/Protoforge | Destroyed 39 combat bots 57448 | -2/Protoforge | Destroyed Hotshot 57450 | -2/Protoforge | Destroyed Hotshot 57454 | -2/Protoforge | Spotted Hotshot 57455 | -2/Protoforge | Spotted Hotshot 57457 | -2/Protoforge | Destroyed Hotshot 57458 | -2/Protoforge | Destroyed Hotshot 57502 | -2/Protoforge | Spotted Executioner 57505 | -2/Protoforge | Destroyed Executioner 57508 | -2/Protoforge | Spotted Executioner 57510 | -2/Protoforge | Destroyed Executioner 57513 | -2/Protoforge | Spotted Striker 57533 | -2/Protoforge | Destroyed Striker 57547 | -2/Protoforge | Spotted Hotshot 57549 | -2/Protoforge | Spotted Hotshot 57549 | -2/Protoforge | Spotted Hotshot 57549 | -2/Protoforge | Spotted Hotshot 57554 | -2/Protoforge | Destroyed 42 combat bots 57586 | -2/Protoforge | Destroyed Hotshot 57587 | -2/Protoforge | Destroyed Hotshot 57591 | -2/Protoforge | Destroyed Hotshot 57595 | -2/Protoforge | Destroyed Hotshot 57649 | -2/Protoforge | Entered Access 57649 | -1/Access | Evolved 2 slots: Utility x1, Weapon x1 57651 | -1/Access | X0-1V1 sent you to a vault 57652 | -1/Access | Found Prototype Protection 57652 | -1/Access | Identified Centrium Heavy Armor Plating 57653 | -1/Access | Identified exit to Command 57653 | -1/Access | X0-1V1 revealed exit location to -1/Command 57658 | -1/Access | Spotted B-99 Colossus 57685 | -1/Access | Identified exit to Surface 57685 | -1/Access | X0-1V1 revealed exit location to -0/Surface 57699 | -1/Access | Spotted Striker 57713 | -1/Access | Spotted Striker 57795 | -1/Access | X0-1V1 destroyed Energy Cycler 57795 | -1/Access | Energy Cycler disabled 57802 | -1/Access | High security lockdown imminent 57859 | -1/Access | X0-1V1 downgraded hostiles (x2) 57882 | -1/Access | High security lockdown engaged 57923 | -1/Access | X0-1V1 sent you into danger 58060 | -1/Access | Build established: Scavenger-Gunner 58070 | -1/Access | Spotted Striker 58070 | -1/Access | Spotted Striker 58078 | -1/Access | Destroyed Striker 58135 | -1/Access | Destroyed Striker 58218 | -1/Access | Destroyed Executioner 58223 | -1/Access | Spotted Striker 58224 | -1/Access | Destroyed Striker 58238 | -1/Access | Found Containment Facilitator 58245 | -1/Access | Destroyed 13 combat bots 58349 | -1/Access | Destroyed Executioner 58360 | -1/Access | Spotted Striker 58360 | -1/Access | Spotted Executioner 58360 | -1/Access | Destroyed Executioner 58362 | -1/Access | Destroyed Striker 58383 | -1/Access | Destroyed 20 combat bots 58389 | -1/Access | Spotted Investigator 58390 | -1/Access | Destroyed Investigator 58412 | -1/Access | Found Containment Facilitator 58422 | -1/Access | Spotted Executioner 58422 | -1/Access | Spotted Striker 58422 | -1/Access | Spotted Executioner 58423 | -1/Access | Destroyed Executioner 58430 | -1/Access | Spotted Executioner 58430 | -1/Access | Spotted Executioner 58430 | -1/Access | Spotted Striker 58433 | -1/Access | Destroyed Striker 58434 | -1/Access | Destroyed Striker 58436 | -1/Access | Destroyed Executioner 58439 | -1/Access | Destroyed Executioner 58440 | -1/Access | Destroyed Executioner 58463 | -1/Access | Destroyed 8 combat bots 58497 | -1/Access | Destroyed Executioner 58551 | -1/Access | Spotted Executioner 58551 | -1/Access | Spotted Executioner 58551 | -1/Access | Spotted Executioner 58552 | -1/Access | Destroyed Executioner 58553 | -1/Access | Destroyed Executioner 58555 | -1/Access | Destroyed Executioner 58592 | -1/Access | Destroyed 17 combat bots 58670 | -1/Access | Spotted Striker 58671 | -1/Access | Spotted Striker 58673 | -1/Access | Destroyed Striker 58687 | -1/Access | Destroyed Striker 58708 | -1/Access | Destroyed 7 combat bots 58782 | -1/Access | Spotted Striker 58783 | -1/Access | Spotted Striker 58785 | -1/Access | Destroyed Striker 58788 | -1/Access | Destroyed Striker 58790 | -1/Access | Spotted Executioner 58799 | -1/Access | Destroyed Executioner 58802 | -1/Access | Destroyed Executioner 58806 | -1/Access | Destroyed Striker 58820 | -1/Access | Destroyed Executioner 58826 | -1/Access | Spotted Executioner 58826 | -1/Access | Spotted Striker 58826 | -1/Access | Spotted Executioner 58833 | -1/Access | Destroyed Executioner 58837 | -1/Access | Destroyed Executioner 58855 | -1/Access | Destroyed Striker 58869 | -1/Access | Found Prototype Processor 58869 | -1/Access | Identified Exp. Targeting Computer 58876 | -1/Access | Destroyed 32 combat bots 58903 | -1/Access | X0-1V1 added 0b10 threat records associated with you (major) 58913 | -1/Access | X0-1V1 vaporized surrounding terrain (radius 23) 58958 | -1/Access | Spotted Striker 58964 | -1/Access | Destroyed Striker 59024 | -1/Access | X0-1V1 sent hostile Thug (x4) 59050 | -1/Access | Destroyed 26 combat bots 59082 | -1/Access | Spotted Executioner 59082 | -1/Access | Spotted Striker 59085 | -1/Access | Destroyed Executioner 59100 | -1/Access | Spotted Executioner 59100 | -1/Access | Spotted Executioner 59103 | -1/Access | Destroyed Executioner 59105 | -1/Access | Destroyed Executioner 59112 | -1/Access | Destroyed Striker 59121 | -1/Access | X0-1V1 sent you into danger 59133 | -1/Access | Destroyed 22 combat bots 59282 | -1/Access | Spotted Executioner 59284 | -1/Access | Destroyed Executioner 59309 | -1/Access | Destroyed 12 combat bots 59325 | -1/Access | Spotted Striker 59325 | -1/Access | Spotted Executioner 59325 | -1/Access | Spotted Striker 59327 | -1/Access | Destroyed Striker 59331 | -1/Access | Destroyed Executioner 59333 | -1/Access | Spotted Executioner 59333 | -1/Access | Spotted Executioner 59333 | -1/Access | Destroyed Striker 59335 | -1/Access | Destroyed Executioner 59341 | -1/Access | Destroyed Executioner 59364 | -1/Access | Destroyed 19 combat bots 59401 | -1/Access | X0-1V1 redirected Transport squads to designated parking area 59422 | -1/Access | Destroyed Executioner 59455 | -1/Access | Spotted Executioner 59456 | -1/Access | Spotted Striker 59456 | -1/Access | Spotted Executioner 59458 | -1/Access | Destroyed Executioner 59462 | -1/Access | Destroyed Executioner 59467 | -1/Access | Destroyed Striker 59494 | -1/Access | Destroyed 21 combat bots 59575 | -1/Access | Found Adv. Kinecellerator 59606 | -1/Access | Spotted Striker 59614 | -1/Access | Destroyed Striker 59624 | -1/Access | Spotted Striker 59626 | -1/Access | Destroyed Striker 59636 | -1/Access | Destroyed Striker 59642 | -1/Access | Sterilization system engaged 59658 | -1/Access | X0-1V1 vaporized surrounding terrain (radius 21) 59662 | -1/Access | Destroyed 16 combat bots 59710 | -1/Access | Destroyed Executioner 59770 | -1/Access | Destroyed B-99 Colossus 59942 | -1/Access | Ambient heat levels rising (+10) 60076 | -1/Access | Spotted B-99 Colossus 60084 | -1/Access | Spotted B-99 Colossus 60092 | -1/Access | Ambient heat levels rising (+10) 60106 | -1/Access | Destroyed B-99 Colossus 60112 | -1/Access | Destroyed B-99 Colossus 60168 | -1/Access | Spotted B-99 Colossus 60168 | -1/Access | X0-1V1 sent you into danger 60186 | -1/Access | Destroyed B-99 Colossus 60216 | -1/Access | Found Unknown Protection 60242 | -1/Access | Ambient heat levels rising (+10) 60292 | -1/Access | Found Hvy. Reactive Plating 60392 | -1/Access | Ambient heat levels rising (+10) 60542 | -1/Access | Ambient heat levels rising (+10) 60655 | -1/Access | X0-1V1 sent hostile P-80 Master (x4) 60672 | -1/Access | System corruption reached 10% 60692 | -1/Access | Ambient heat levels rising (+10) 60842 | -1/Access | Ambient heat levels rising (+10) 60931 | -1/Access | Spotted B-99 Colossus 60931 | -1/Access | Spotted B-99 Colossus 60943 | -1/Access | Destroyed B-99 Colossus 60953 | -1/Access | Destroyed B-99 Colossus 60992 | -1/Access | Ambient heat levels rising (+10) 61142 | -1/Access | Ambient heat levels rising (+10) 61268 | -1/Access | Found Quantum Capacitor 61292 | -1/Access | Ambient heat levels rising (+10) 61442 | -1/Access | Ambient heat levels rising (+10) 61489 | -1/Access | X0-1V1 mutated your Weapon slot to Power slot 61592 | -1/Access | Ambient heat levels rising (+10) 61742 | -1/Access | Ambient heat levels rising (+10) 61892 | -1/Access | Ambient heat levels rising (+10) 62042 | -1/Access | Ambient heat levels rising (+10) 62130 | -1/Access | Core integrity restored by X0-1V1 (+260) 62192 | -1/Access | Ambient heat levels rising (+10) 62242 | -1/Access | Entered Command 62318 | -1/Command | X0-1V1 activates XOMVISION 62579 | -1/Command | Build established: Hacker-Gunner 62596 | -1/Command | Spotted B-99 Colossus 62742 | -1/Command | First assault squad dispatched 62759 | -1/Command | X0-1V1 mutated your Power slot to Utility slot 62962 | -1/Command | X0-1V1 activates XOMVISION 63149 | -1/Command | X0-1V1 sent allied Executioner (x3) 63152 | -1/Command | High security lockdown imminent 63165 | -1/Command | Destroyed 19 combat bots 63195 | -1/Command | Core integrity restored by X0-1V1 (+246) 63203 | -1/Command | Lost 3 allies 63211 | -1/Command | Destroyed 21 combat bots 63232 | -1/Command | High security lockdown engaged 63314 | -1/Command | Destroyed 8 combat bots 63378 | -1/Command | Destroyed 20 combat bots 63440 | -1/Command | Build established: Scavenger-Gunner 63449 | -1/Command | Spotted Executioner 63449 | -1/Command | Spotted Investigator 63449 | -1/Command | Spotted Executioner 63449 | -1/Command | Spotted Striker 63449 | -1/Command | Spotted Executioner 63450 | -1/Command | Destroyed Investigator 63455 | -1/Command | Destroyed Executioner 63460 | -1/Command | Destroyed Executioner 63464 | -1/Command | Destroyed Striker 63471 | -1/Command | Destroyed Executioner 63492 | -1/Command | Destroyed 18 combat bots 63603 | -1/Command | Spotted Investigator 63603 | -1/Command | Spotted Executioner 63603 | -1/Command | Spotted Striker 63603 | -1/Command | Spotted Executioner 63603 | -1/Command | Spotted Executioner 63604 | -1/Command | Spotted Striker 63605 | -1/Command | Spotted Striker 63605 | -1/Command | Destroyed Striker 63605 | -1/Command | Destroyed Investigator 63605 | -1/Command | Spotted Executioner 63607 | -1/Command | Destroyed Executioner 63608 | -1/Command | Destroyed Executioner 63610 | -1/Command | Destroyed Executioner 63610 | -1/Command | Destroyed Striker 63611 | -1/Command | Destroyed Executioner 63612 | -1/Command | Destroyed Striker 63633 | -1/Command | Destroyed 20 combat bots 63678 | -1/Command | Spotted Striker 63678 | -1/Command | Spotted Executioner 63678 | -1/Command | Spotted Striker 63681 | -1/Command | Destroyed Striker 63682 | -1/Command | Destroyed Executioner 63689 | -1/Command | Destroyed Striker 63871 | -1/Command | Spotted Investigator 63872 | -1/Command | Spotted Executioner 63873 | -1/Command | Spotted Executioner 63875 | -1/Command | Spotted Striker 63877 | -1/Command | Spotted Executioner 63877 | -1/Command | Spotted Striker 63877 | -1/Command | Spotted Striker 63877 | -1/Command | Destroyed Investigator 63878 | -1/Command | Destroyed Executioner 63880 | -1/Command | Destroyed Striker 63882 | -1/Command | Destroyed Executioner 63893 | -1/Command | Destroyed Striker 63894 | -1/Command | Destroyed Striker 63895 | -1/Command | Destroyed Executioner 63916 | -1/Command | Destroyed 32 combat bots 64087 | -1/Command | X0-1V1 sent hostile G-73 Enforcer (x4) 64115 | -1/Command | X0-1V1 caused items to flee you 64116 | -1/Command | Spotted Executioner 64121 | -1/Command | Destroyed Executioner 64123 | -1/Command | Spotted Striker 64123 | -1/Command | Spotted Striker 64126 | -1/Command | Destroyed Striker 64128 | -1/Command | Destroyed Striker 64149 | -1/Command | Destroyed 11 combat bots 64261 | -1/Command | Items stopped fleeing you 64366 | -1/Command | X0-1V1 activates XOMVISION 64817 | -1/Command | X0-1V1 sent hostile Thug (x4) 65535 | -1/Command | Spotted Striker 65573 | -1/Command | Spotted Executioner 65577 | -1/Command | Destroyed Executioner 65577 | -1/Command | Spotted Executioner 65579 | -1/Command | Destroyed Executioner 65607 | -1/Command | Destroyed Striker 65629 | -1/Command | Found Exp. Targeting Computer 65885 | -1/Command | Destroyed B-99 Colossus 65926 | -1/Command | Found Prototype Ballistic Gun 65930 | -1/Command | Found Unknown Protection 65930 | -1/Command | Identified Hvy. Insulated Plating 66124 | -1/Command | Spotted B-99 Colossus 66150 | -1/Command | Destroyed B-99 Colossus 66243 | -1/Command | Found Prototype Ballistic Gun 66243 | -1/Command | Identified Multirail (x2) 66569 | -1/Command | Destroyed 7 combat bots 66608 | -1/Command | Spotted B-99 Colossus 66608 | -1/Command | Spotted Alpha 7 66608 | -1/Command | Spotted Striker 66608 | -1/Command | Spotted Executioner 66608 | -1/Command | Spotted Executioner 66608 | -1/Command | Spotted B-99 Colossus 66608 | -1/Command | X0-1V1 sent you into danger 66609 | -1/Command | Spotted Executioner 66609 | -1/Command | Spotted Executioner 66612 | -1/Command | Spotted Striker 66613 | -1/Command | Spotted Alpha 7 66615 | -1/Command | Discovered exit to Surface (range 6) 66618 | -1/Command | Destroyed Executioner 66618 | -1/Command | Destroyed Executioner 66619 | -1/Command | Destroyed Executioner 66622 | -1/Command | Destroyed Alpha 7 66634 | -1/Command | Destroyed Striker 66636 | -1/Command | Destroyed Striker 66637 | -1/Command | Destroyed Alpha 7 66658 | -1/Command | Destroyed 7 combat bots 66659 | -1/Command | Core integrity fell below 50% 66684 | -1/Command | Destroyed B-99 Colossus 66705 | -1/Command | Destroyed B-99 Colossus 66728 | -1/Command | Lost 19 parts (2p1n10u6w) 66927 | -1/Command | X0-1V1 vaporized surrounding terrain (radius 23) 67080 | -1/Command | Found Exp. Core Analyzer 67084 | -1/Command | Found Adv. Kinecellerator 67106 | -1/Command | Found Adv. Kinecellerator 67109 | -1/Command | Found Exp. Targeting Computer 67342 | -1/Command | Found Gamma Bomb Array 67863 | -1/Command | X0-1V1 vaporized surrounding terrain (radius 23) 67872 | -1/Command | X0-1V1 sent you to a vault 67877 | -1/Command | Found Prototype Reactor 67877 | -1/Command | Identified Zero-point Reactor 67886 | -1/Command | Found Prototype Device 67900 | -1/Command | Found Prototype Launcher 67902 | -1/Command | Identified Tactical Quantum Warhead 67909 | -1/Command | Identified Exp. Shock Absorption System 67937 | -1/Command | Found Prototype Device 67954 | -1/Command | Identified Exp. Thermal Defense Suite 68958 | -1/Command | Found Prototype Slashing Weapon 68962 | -1/Command | Identified Hvy. Scimitar of Distortion 69389 | -1/Command | Core integrity restored by X0-1V1 (+369) 70269 | -1/Command | Spotted M Guard 70294 | -1/Command | Spotted Combat Programmer 70295 | -1/Command | Spotted Combat Programmer 70303 | -1/Command | Destroyed Combat Programmer 70312 | -1/Command | Destroyed Combat Programmer 70321 | -1/Command | X0-1V1 activates XOMVISION 70323 | -1/Command | Spotted M Guard 70343 | -1/Command | Destroyed M Guard 70348 | -1/Command | Destroyed M Guard 70348 | -1/Command | All MAIN.C guards destroyed 70409 | -1/Command | Found Hvy. Reactive Plating 70523 | -1/Command | X0-1V1 vaporized surrounding terrain (radius 23) 71070 | -1/Command | Found Gamma Bomb Array 71608 | -1/Command | Met MAIN.C 71625 | -1/Command | Destroyed MAIN.C Shell 71625 | -1/Command | 0b10 Conduit disabled 71628 | -1/Command | MAIN.C activated Command garrisons 71654 | -1/Command | Destroyed MAIN.C 71684 | -1/Command | Lost 6 parts (2n2u2w) 71690 | -1/Command | Discovered exit to Surface (range 36) 71690 | -1/Command | Discovered exit to Surface (range 81) 71690 | -1/Command | Extracted map data and part IDs from MAIN.C's data core 71715 | -1/Command | Spotted Striker 71717 | -1/Command | Spotted Striker 71728 | -1/Command | X0-1V1 activates XOMVISION 71730 | -1/Command | Core integrity restored by X0-1V1 (+328) 71766 | -1/Command | Destroyed Striker 71774 | -1/Command | Destroyed Striker 71814 | -1/Command | Lost 4 parts (2u2w) 72265 | -1/Command | Phase Generator disabled 73016 | -1/Command | Found Exp. Armor Integrity Analyzer 73028 | -1/Command | Found Exp. System Purifier 73035 | -1/Command | Found Hvy. Regenerative Plating 73057 | -1/Command | Found Vortex Chain Reactor 73074 | -1/Command | Found Zero-point Reactor 73080 | -1/Command | Found Adv. Kinecellerator 73305 | -1/Command | Build established: Scavenger-Mutant 73348 | -1/Command | Found Point Singularity Launcher 74226 | -1/Command | Build established: Scavenger-Gunner 80304 | -1/Command | Build established: Scavenger-Mutant 81345 | -1/Command | Build established: Scavenger-Tank 83731 | -1/Command | Crushed by falling debris 83736 | -1/Command | Crushed by falling debris 83746 | -1/Command | Crushed by falling debris 83760 | -1/Command | Crushed by falling debris 83767 | -1/Command | Lost 3 parts (3u) 83791 | -1/Command | Crushed by falling debris 83818 | -1/Command | Crushed by falling debris 83849 | -1/Command | Lost 3 parts (1u2w) 83855 | -1/Command | Crushed by falling debris 83871 | -1/Command | Crushed by falling debris 83889 | -1/Command | Crushed by falling debris 83890 | -1/Command | System corruption reached 30% 83897 | -1/Command | Crushed by falling debris 83920 | -1/Command | Lost 5 parts (1n3u1w) 83989 | -1/Command | Crushed by falling debris 83991 | -1/Command | Crushed by falling debris 83994 | -1/Command | Crushed by falling debris 83994 | -1/Command | Crushed by falling debris 83999 | -1/Command | Crushed by falling debris 84020 | -1/Command | Crushed by falling debris 84022 | -1/Command | Lost 3 parts (1u2w) 84035 | -1/Command | Crushed by falling debris 84056 | -1/Command | Crushed by falling debris 84081 | -1/Command | Crushed by falling debris 84096 | -1/Command | Crushed by falling debris 84127 | -1/Command | Lost 3 parts (3w) 84554 | *** | Establishing 0b11! Last Messages --------------- 84328_ System corrupted: Heat flow error (+274). 84345_ System corrupted: Heat flow error (+176). 84361_ System corrupted: IFF burst signal emitted. 84376_ System corrupted: Component data lost. 84401_ DPABT/E,=GX CR7IS#O9K%OKT 84416_ System corrupted: Energy discharge (-115). 84421_ Dropped Arm. Heavy Treads. 84425_ Acquired Enh. Armored Heavy Treads. 84426_ Dropped Biometal Heavy Treads. 84430_ Acquired Exp. Biometal Heavy Treads. 84433_ System corrupted: Matter fused (-10). 84434_ Acquired Adv. Kinecellerator. 84448_ System corrupted: Energy discharge (-207). 84463_ System corrupted: Matter fused (-7). 84471_ Dropped Rnf. Quantum Reactor. 84472_ Dropped Rnf. Antimatter Reactor. 84478_ System corrupted: Matter fused (-10). 84496_ System corrupted: Matter fused (-6). 84527_ LBWXEOCDCB0K#|LX|YMV9UA>>3G